{"text_format":"1","workbook":"xlsx","n_sheets":16,"sheets":["Article Type","Product registration","Display","Set of Goods","Serial no. - IMEI","Bottle deposit","Multiple articles","Bilka.dk content","Measurements","SAP","Ordreskema dansk leverandør","Ordreskema udenlansk leverandør","Allocation","MC","Lists","Lister"],"not_rendered":{"charts":0,"images":21,"macros":1,"external_links":0,"defined_names":21,"comments":4,"pivot_tables":0},"unopened":[],"bounds":{"document_bytes":16777216,"sheet_cells":100000,"rows_first":2000,"rows_last":500,"rows_between":2000,"halvings":0,"cell_chars":16384,"cell_head_chars":4096},"cells_cut":0,"cells_raw":0,"read":"whole","date_system":"1900"}

{"sheet":"Article Type","index":0,"n_rows":0,"n_cols":0,"rows_kept":0,"cut":false,"hidden":false,"merged":[]}

{"sheet":"Product registration","index":1,"n_rows":107,"n_cols":13,"rows_kept":107,"cut":false,"hidden":false,"merged":[[73,0,73,12],[74,10,74,12],[76,4,76,5],[69,0,69,2],[70,11,70,12],[72,0,72,2],[69,11,69,12],[74,0,74,3],[70,0,70,2],[71,0,71,2],[76,8,76,9],[74,4,74,5],[75,4,75,5],[75,10,75,12],[76,10,76,11],[76,6,76,7],[75,6,75,7],[75,8,75,9],[74,6,74,7],[74,8,74,9],[77,10,77,11],[87,0,87,12],[78,8,78,9],[80,8,80,12],[78,4,78,5],[79,8,79,9],[78,6,78,7],[80,6,80,7],[79,4,79,5],[80,4,80,5],[79,6,79,7],[77,8,77,9],[77,4,77,5],[77,6,77,7],[106,0,106,11],[86,0,86,12],[81,8,81,12],[82,6,82,8],[83,6,83,8],[84,4,84,5],[85,6,85,8],[84,6,84,8],[83,9,83,12],[82,9,82,12],[82,4,82,5],[94,0,94,12],[92,0,92,12],[102,1,102,3],[98,1,98,3],[100,1,100,3],[96,4,96,6],[85,4,85,5],[83,4,83,5],[81,6,81,7],[81,4,81,5],[84,9,84,12],[85,9,85,12],[96,9,96,12],[91,0,91,12],[0,0,0,12],[17,0,18,12],[14,0,15,12],[12,11,12,12],[11,11,11,12],[8,9,8,11],[7,4,7,5],[8,2,8,3],[7,2,7,3],[1,7,1,10],[2,5,2,6],[1,5,1,6],[3,0,3,1],[4,0,4,1],[1,0,1,4],[4,5,4,6],[3,9,3,10],[3,5,3,6],[5,3,5,5],[2,0,2,4],[90,0,90,12],[89,0,89,12],[88,0,88,12],[22,0,22,1],[20,0,20,2],[25,10,25,11],[20,11,20,12],[19,11,19,12],[19,9,19,10],[13,0,13,10],[8,0,8,1],[19,0,19,2],[12,0,12,3],[11,0,11,3],[10,11,10,12],[9,11,9,12],[20,9,20,10],[22,10,22,11],[23,10,23,11],[22,4,22,5],[21,0,21,12],[19,3,19,5],[20,6,20,8],[20,3,20,5],[19,6,19,8],[12,4,12,7],[11,4,11,7],[9,0,9,1],[10,2,10,3],[9,2,9,3],[10,5,10,6],[9,5,9,6],[10,7,10,9],[9,7,9,9],[7,6,7,7],[8,6,8,7],[16,0,16,10],[8,4,8,5],[7,9,7,11],[6,9,6,10],[1,11,1,12],[2,11,2,12],[6,3,6,5],[2,7,2,10],[3,11,3,12],[4,11,4,12],[12,8,12,10],[11,8,11,10],[5,6,5,8],[4,7,4,8],[3,7,3,8],[4,9,4,10],[3,2,3,4],[4,2,4,4],[5,0,5,2],[5,9,5,10],[6,0,6,2],[6,6,6,8],[7,0,7,1],[10,0,10,1],[23,0,23,1],[24,8,24,9],[23,8,23,9],[24,0,24,1],[29,8,29,9],[28,8,28,9],[27,8,27,9],[23,6,23,7],[23,4,23,5],[27,6,27,7],[26,6,26,7],[28,4,28,5],[27,4,27,5],[26,4,26,5],[25,0,25,1],[27,0,27,1],[25,4,25,5],[28,6,28,7],[29,0,29,1],[28,0,28,1],[25,6,25,7],[26,0,26,1],[22,6,22,7],[22,8,22,9],[26,8,26,9],[25,8,25,9],[24,6,24,7],[29,10,29,11],[26,10,26,11],[29,4,29,5],[28,10,28,11],[24,4,24,5],[29,6,29,7],[24,10,24,11],[27,10,27,11],[31,0,31,1],[45,0,45,1],[43,0,43,1],[35,7,35,8],[36,5,36,6],[37,0,37,12],[30,0,30,1],[42,4,42,7],[35,9,35,10],[31,9,31,10],[31,5,31,6],[30,4,30,5],[34,2,34,3],[33,2,33,3],[34,10,34,11],[31,3,31,4],[34,6,34,7],[34,4,34,5],[32,9,32,10],[30,8,30,9],[31,7,31,8],[36,9,36,10],[30,10,30,11],[30,6,30,7],[32,3,32,4],[32,5,32,6],[32,7,32,8],[46,0,46,1],[33,0,33,1],[34,0,34,1],[38,0,38,1],[35,2,35,3],[36,2,36,3],[36,7,36,8],[39,4,39,7],[40,4,40,7],[41,0,41,1],[43,4,43,7],[40,0,40,1],[42,0,42,1],[46,4,46,7],[33,6,33,7],[32,0,32,1],[34,8,34,9],[33,8,33,9],[33,10,33,11],[48,5,48,7],[50,0,50,2],[33,4,33,5],[35,5,35,6],[52,11,52,12],[53,11,53,12],[51,0,51,2],[44,0,44,1],[44,4,44,7],[45,4,45,7],[41,4,41,7],[39,0,39,1],[48,3,48,4],[47,3,47,4],[68,0,68,2],[68,10,68,12],[64,10,64,12],[57,0,57,12],[59,0,59,2],[60,10,60,12],[59,10,59,12],[67,0,67,2],[63,0,63,2],[65,0,65,2],[65,10,65,12],[67,10,67,12],[66,0,66,2],[61,10,61,12],[62,10,62,12],[63,10,63,12],[66,10,66,12],[62,0,62,2],[58,10,58,12],[64,0,64,2],[61,0,61,2],[60,0,60,2],[58,0,58,2],[55,8,55,9],[56,8,56,9],[48,8,48,12],[47,8,47,12],[51,10,51,12],[50,10,50,12],[49,0,49,12],[55,2,55,3],[55,4,55,5],[56,4,56,5],[56,2,56,3],[54,0,54,2],[52,0,52,2],[53,0,53,2],[47,5,47,7],[48,0,48,1],[47,0,47,1],[56,11,56,12],[55,11,55,12],[56,6,56,7],[55,6,55,7]]}
["Basic data 3.6"]
["DS article number",null,null,null,null,"Buying group 2 (dig.)",null,"Assistant",null,null,null,"Date"]
[null,null,null,null,null,null,null,null,null,null,null,"2016-07-20"]
["Listing date",null,"Copy article number",null,null,"Commodity code",null,"Style ID",null,"RP Type (DC)",null,"RP Type (Store)"]
[null,null,null,null,null,null,null,null,null,"Z0: No Planning",null,"Z0: No Planning"]
["Article type",null,null,"Merchandise category",null,null,"Article category",null,null,null,"Style ID"]
[]
["Display",null,"Set of goods",null,"Article Hirachy",null,"Vendor number",null,"VSR","Purchasing organization"]
[]
["Country of origin",null,"Sales rules (age ect.)",null,"Brand","Private label",null,"Enviromental/Health/Etc. Labels",null,null,"License name","Release date"]
[]
["Vendor's name",null,null,null,"Vendor's contact (e-mail)",null,null,null,"Vendor's article number",null,null,"Alarm tag"]
[]
["Article description (english, max 40 characters)",null,null,null,null,null,null,null,null,null,null,"No. Cha.",{"$f":"LEN(A15)","v":0}]
[]
[]
["Article description (danish, max 40 characters)",null,null,null,null,null,null,null,null,null,null,"No. Cha.",{"$f":"LEN(A18)","v":0}]
[]
[]
["Number of sales units per carton",null,null,"Number of cartons per outer carton",null,null,"Number of cartons per layer",null,null,"No. of cartons/pallet",null,"Order unit/EAN"]
[]
["Logistics data"]
["Dimensions ",null,"Sales unit","HY1",null,null,"carton",null,"Outer carton",null,"Pallet",null,"Pallet type"]
["EAN",null,null,null,"EAN",null,null,null,null,null,null,null,"1,5/1"]
["Gross weight (g)",null,null,null,"Gross weight (g)"]
["Net weight (g)",null,null,null,"Net weight (g)",null,null,null,null,null,null,null,"1/1"]
["Height (mm)",null,null,null,"Shortest (mm)"]
["Width (mm)",null,null,null,"Medium (mm)",null,null,null,null,null,null,null,"1/2"]
["Depth (mm)",null,null,null,"Longest (mm)"]
["Net content",null,null,null,"Net content",null,null,null,null,null,null,null,"1/4"]
["Content Unit",null,null,null,"Content Unit"]
["Planned delievery time",null,"Durability","Supplier durability",null,"Warehouse durability",null,"Store durability",null,"Customer durability",null,"Composite","Carton type"]
[]
["Optimization unit",null,"Temperature requirements",null,"Min. Order",null,"Delivery Cycle",null,"Controlled label",null,"Bottle deposit type",null,"Order unit"]
[]
["SU pr. UOM","Pool no.","Replacing article",null,"Store order","Rounding rules",null,null,null,"Size set/Counter Sample",null,"Photo Sample","Auto. order"]
[]
["Tax - Import only"]
["Content",null,"Weight (%)","Weight (g)","Content"]
["Chocolate",null,null,null,"Textile content"]
["Nuts"]
["Candy"]
["Alcohol"]
["Ice cream"]
["Peanuts"]
["Coconut"]
["Apricot kernels"]
["ISBN",null,"Import","WEEE Product weight",null,"WEEE Batteries weight and type",null,null,"Serial no./IMEI"]
[]
["Order data"]
[null,null,null,"Føtex","Føtex food","Bilka","Bilka.dk","Netto","Døgn Netto","Salling","DC for price condition Netto"]
["Buying price per unit"]
["Price unit",null,null,null,null,null,null,null,null,null,"Royalty","Vendor of add. Cost"]
["Currency"]
["F&R setup (x)"]
["Hanger price","Type of royalty","Alarm price/Add. cost",null,"Flow through",null,"Commision cost",null,"Reverse VAT",null,"VAT","Extract / re-pack"]
[null,null,null,null,null,null,null,null,null,null,0.25]
["Sales data"]
[null,null,null,"Føtex","Føtex food","Bilka","Bilka.dk","Netto","Døgn Netto","Salling","Listing procedure"]
["Rec. sales price",null,null,null,null,null,null,null,null,null,"Layout Module"]
["Sales price"]
["Bonus buy"]
["AU-Price"]
["DC mark up"]
["DC in price (co-ex)"]
["Sales organization"]
["Flow type"]
["F&R on promotion (Spot)"]
["F&R setup (x)",null,null,null,null,null,null,null,null,null,"AU-Price dates"]
["Zones (co-ex) / Assortment",null,null,null,null,null,null,null,null,null,"From"]
["Rule Based/Layout Module",null,null,null,null,null,null,null,null,null,"To"]
["Consignment Control"]
["Supply source"]
["Other Data"]
["Attributes",null,null,null,"Voucher Black Hawk",null,"Voucher Goyada",null,"RRP ",null,"Danish TV license"]
[]
[null,null,null,null,"Listing (date)",null,"Warranty card",null,"Not code 7 DC",null,"Not Code 7 Store",null,"Extract"]
[null,null,null,null,null,null,null,null,null,null,null,null,{"$f":"IF(L21=0,\" \",IF(I24=0,\" \",IF(L21=I24,\"x\",\" \")))","v":" "}]
[null,null,null,null,"Multi buy code",null,"Bilka.dk",null,"Pick up",null,"PLU","Catch weight","Traceability"]
[]
[null,null,null,null,"No repeat key",null,"Employee discount",null,"DC number (If different from normal DC"]
[]
[null,null,null,null,"Matrice no., activity",null,"Duty",null,null,"Conditions"]
[]
[null,null,null,null,"Matrice no.",null,"Repnet"]
[]
["Comments"]
[]
[]
[]
[]
[]
[]
[]
[]
[]
[null,null,null,null,"Vendor relevant buttons",null,null,null,null,"Buttons relevant for purchasing department"]
[]
[null,"To be filled by vendor"]
[]
[null,"To be filled by buying dep."]
[]
[null,"To be filled by Master Data."]
[]
[]
[]
["Please refer to http://viewer.zmags.com/publication/388d11e6#/388d11e6/1 for packing instructions"]

{"sheet":"Display","index":2,"n_rows":3,"n_cols":11,"rows_kept":3,"cut":false,"hidden":false,"merged":[[13,0,13,3],[12,10,12,13],[13,10,13,13],[21,10,21,13],[22,10,22,13],[12,4,12,7],[13,4,13,7],[14,4,14,7],[15,4,15,7],[16,4,16,7],[17,4,17,7],[18,4,18,7],[14,0,14,3],[15,0,15,3],[16,0,16,3],[17,0,17,3],[18,0,18,3],[12,8,12,9],[13,8,13,9],[12,0,12,3],[14,10,14,13],[15,10,15,13],[16,10,16,13],[17,10,17,13],[23,4,23,7],[19,4,19,7],[20,4,20,7],[21,4,21,7],[22,4,22,7],[27,10,27,13],[28,10,28,13],[29,10,29,13],[30,10,30,13],[1,0,1,13],[0,0,0,13],[30,0,30,3],[19,0,19,3],[20,0,20,3],[21,0,21,3],[22,0,22,3],[23,0,23,3],[24,0,24,3],[25,0,25,3],[26,0,26,3],[27,0,27,3],[28,0,28,3],[29,0,29,3],[30,4,30,7],[24,4,24,7],[25,4,25,7],[26,4,26,7],[27,4,27,7],[28,4,28,7],[29,4,29,7],[19,10,19,13],[20,10,20,13],[19,8,19,9],[2,8,2,9],[2,0,2,3],[3,0,3,3],[4,0,4,3],[5,0,5,3],[6,0,6,3],[2,4,2,7],[3,4,3,7],[4,4,4,7],[5,4,5,7],[3,8,3,9],[4,8,4,9],[5,8,5,9],[6,8,6,9],[7,10,7,13],[8,10,8,13],[9,10,9,13],[10,10,10,13],[11,10,11,13],[3,10,3,13],[2,10,2,13],[4,10,4,13],[5,10,5,13],[6,10,6,13],[7,0,7,3],[8,0,8,3],[9,0,9,3],[10,0,10,3],[11,0,11,3],[6,4,6,7],[7,4,7,7],[8,4,8,7],[9,4,9,7],[10,4,10,7],[11,4,11,7],[7,8,7,9],[8,8,8,9],[9,8,9,9],[10,8,10,9],[14,8,14,9],[15,8,15,9],[16,8,16,9],[17,8,17,9],[18,8,18,9],[11,8,11,9],[18,10,18,13],[26,8,26,9],[27,8,27,9],[28,8,28,9],[29,8,29,9],[30,8,30,9],[21,8,21,9],[22,8,22,9],[23,8,23,9],[24,8,24,9],[25,8,25,9],[20,8,20,9],[23,10,23,13],[24,10,24,13],[25,10,25,13],[26,10,26,13]]}
["Display data"]
["If the display consists of new articles, a separate product registration form must be filled in for each new article. Note this in the comment field, for both the display and the new articles."]
["Article name",null,null,null,"Article EAN",null,null,null,"Quantity of sales units",null,"DS article number"]

{"sheet":"Set of Goods","index":3,"n_rows":3,"n_cols":11,"rows_kept":3,"cut":false,"hidden":false,"merged":[[2,0,2,3],[2,4,2,7],[2,8,2,9],[2,10,2,13],[1,0,1,13],[0,0,0,13],[5,0,5,3],[5,4,5,7],[5,8,5,9],[5,10,5,13],[6,0,6,3],[6,4,6,7],[6,8,6,9],[6,10,6,13],[3,0,3,3],[3,4,3,7],[3,8,3,9],[3,10,3,13],[4,0,4,3],[4,4,4,7],[4,8,4,9],[4,10,4,13],[9,0,9,3],[9,4,9,7],[9,8,9,9],[9,10,9,13],[10,0,10,3],[10,4,10,7],[10,8,10,9],[10,10,10,13],[7,0,7,3],[7,4,7,7],[7,8,7,9],[7,10,7,13],[8,0,8,3],[8,4,8,7],[8,8,8,9],[8,10,8,13],[13,0,13,3],[13,4,13,7],[13,8,13,9],[13,10,13,13],[14,0,14,3],[14,4,14,7],[14,8,14,9],[14,10,14,13],[11,0,11,3],[11,4,11,7],[11,8,11,9],[11,10,11,13],[12,0,12,3],[12,4,12,7],[12,8,12,9],[12,10,12,13],[17,0,17,3],[17,4,17,7],[17,8,17,9],[17,10,17,13],[18,0,18,3],[18,4,18,7],[18,8,18,9],[18,10,18,13],[15,0,15,3],[15,4,15,7],[15,8,15,9],[15,10,15,13],[16,0,16,3],[16,4,16,7],[16,8,16,9],[16,10,16,13],[21,0,21,3],[21,4,21,7],[21,8,21,9],[21,10,21,13],[22,0,22,3],[22,4,22,7],[22,8,22,9],[22,10,22,13],[19,0,19,3],[19,4,19,7],[19,8,19,9],[19,10,19,13],[20,0,20,3],[20,4,20,7],[20,8,20,9],[20,10,20,13],[25,0,25,3],[25,4,25,7],[25,8,25,9],[25,10,25,13],[26,0,26,3],[26,4,26,7],[26,8,26,9],[26,10,26,13],[23,0,23,3],[23,4,23,7],[23,8,23,9],[23,10,23,13],[24,0,24,3],[24,4,24,7],[24,8,24,9],[24,10,24,13],[29,0,29,3],[29,4,29,7],[29,8,29,9],[29,10,29,13],[30,0,30,3],[30,4,30,7],[30,8,30,9],[30,10,30,13],[27,0,27,3],[27,4,27,7],[27,8,27,9],[27,10,27,13],[28,0,28,3],[28,4,28,7],[28,8,28,9],[28,10,28,13]]}
["Set of goods"]
["If the set of goods consists of new articles, a separate product registration form must be filled in for each new article. Note this in the comment field, for all new articles."]
["Article name",null,null,null,"Article EAN",null,null,null,"Quantity",null,"DS article number"]

{"sheet":"Serial no. - IMEI","index":4,"n_rows":3,"n_cols":7,"rows_kept":3,"cut":false,"hidden":false,"merged":[[12,0,12,5],[0,0,0,12],[2,0,2,5],[3,0,3,5],[4,0,4,5],[5,0,5,5],[6,0,6,5],[7,0,7,5],[8,0,8,5],[9,0,9,5],[10,0,10,5],[11,0,11,5],[11,6,11,12],[12,6,12,12],[24,0,24,5],[13,0,13,5],[14,0,14,5],[15,0,15,5],[16,0,16,5],[17,0,17,5],[18,0,18,5],[19,0,19,5],[20,0,20,5],[21,0,21,5],[22,0,22,5],[23,0,23,5],[42,0,42,5],[36,0,36,5],[25,0,25,5],[26,0,26,5],[27,0,27,5],[28,0,28,5],[29,0,29,5],[30,0,30,5],[31,0,31,5],[32,0,32,5],[33,0,33,5],[34,0,34,5],[35,0,35,5],[37,0,37,5],[38,0,38,5],[39,0,39,5],[40,0,40,5],[41,0,41,5],[49,0,49,5],[2,6,2,12],[3,6,3,12],[4,6,4,12],[5,6,5,12],[6,6,6,12],[7,6,7,12],[8,6,8,12],[9,6,9,12],[10,6,10,12],[43,0,43,5],[44,0,44,5],[45,0,45,5],[46,0,46,5],[47,0,47,5],[48,0,48,5],[13,6,13,12],[14,6,14,12],[15,6,15,12],[28,6,28,12],[17,6,17,12],[18,6,18,12],[19,6,19,12],[20,6,20,12],[21,6,21,12],[22,6,22,12],[23,6,23,12],[24,6,24,12],[25,6,25,12],[26,6,26,12],[27,6,27,12],[16,6,16,12],[40,6,40,12],[29,6,29,12],[30,6,30,12],[31,6,31,12],[32,6,32,12],[33,6,33,12],[34,6,34,12],[35,6,35,12],[36,6,36,12],[37,6,37,12],[38,6,38,12],[39,6,39,12],[47,6,47,12],[48,6,48,12],[49,6,49,12],[41,6,41,12],[42,6,42,12],[43,6,43,12],[44,6,44,12],[45,6,45,12],[46,6,46,12]]}
["Serial no. data / IMEI no."]
["If the article contains serial and/or IMEI no. Insert the series of numbers below "]
["Serial no.  ",null,null,null,null,null,"IMEI no."]

{"sheet":"Bottle deposit","index":5,"n_rows":8,"n_cols":1,"rows_kept":8,"cut":false,"hidden":false,"merged":[[6,0,6,3],[6,4,6,12],[7,0,7,3],[7,4,7,12],[5,0,5,3],[5,4,5,12],[4,0,4,12],[0,0,0,12],[3,0,3,3],[1,4,1,12],[2,0,2,3],[3,4,3,12],[1,0,1,3],[2,4,2,12]]}
["Bottle deposit sales unit 1"]
["Desposit type"]
["Deposit EAN sales unit"]
["Vendor deposit article number"]
["Bottle deposit order unit 1"]
["Crates or trays"]
["Number of crates or trays"]
["Deposit EAN ordering unit"]

{"sheet":"Multiple articles","index":6,"n_rows":627,"n_cols":16,"rows_kept":627,"cut":false,"hidden":false,"merged":[[627,0,627,1],[627,2,627,4],[627,6,627,8],[627,9,627,12],[623,0,623,2],[623,3,623,5],[623,6,623,8],[623,9,623,10],[623,11,623,12],[624,0,624,2],[624,3,624,4],[624,6,624,7],[624,8,624,9],[624,10,624,11],[625,0,625,2],[625,3,625,4],[625,6,625,7],[625,8,625,9],[625,10,625,11],[626,0,626,1],[626,2,626,4],[626,6,626,8],[626,9,626,12],[620,0,620,1],[620,3,620,4],[620,5,620,6],[620,7,620,8],[620,9,620,10],[620,11,620,12],[621,0,621,1],[621,3,621,4],[621,5,621,6],[621,7,621,8],[621,9,621,10],[621,11,621,12],[622,0,622,2],[622,3,622,5],[622,6,622,8],[622,9,622,10],[622,11,622,12],[617,0,617,1],[617,2,617,3],[617,4,617,5],[617,6,617,7],[617,8,617,9],[617,10,617,11],[618,0,618,1],[618,2,618,3],[618,4,618,5],[618,6,618,7],[618,8,618,9],[618,10,618,11],[619,0,619,1],[619,2,619,3],[619,4,619,5],[619,6,619,7],[619,8,619,9],[619,10,619,11],[614,0,614,1],[614,2,614,3],[614,4,614,5],[614,6,614,7],[614,8,614,9],[614,10,614,11],[615,0,615,1],[615,2,615,3],[615,4,615,5],[615,6,615,7],[615,8,615,9],[615,10,615,11],[616,0,616,1],[616,2,616,3],[616,4,616,5],[616,6,616,7],[616,8,616,9],[616,10,616,11],[609,0,609,2],[610,0,610,12],[611,0,611,1],[611,2,611,3],[611,4,611,5],[611,6,611,7],[611,8,611,9],[611,10,611,11],[612,0,612,1],[612,2,612,3],[612,4,612,5],[612,6,612,7],[612,8,612,9],[612,10,612,11],[613,0,613,1],[613,2,613,3],[613,4,613,5],[613,6,613,7],[613,8,613,9],[613,10,613,11],[592,0,592,10],[592,11,592,12],[593,0,593,10],[593,11,593,12],[594,0,594,10],[595,0,596,12],[597,0,597,10],[598,0,599,12],[600,0,600,12],[601,0,601,2],[602,0,602,2],[603,0,603,9],[604,0,604,2],[605,0,605,2],[606,0,606,2],[607,0,607,2],[608,0,608,2],[583,0,583,2],[583,3,583,4],[583,6,583,7],[583,8,583,9],[583,10,583,11],[584,0,584,1],[584,2,584,4],[584,6,584,8],[584,9,584,12],[585,0,585,1],[585,2,585,4],[585,6,585,8],[585,9,585,12],[588,0,588,12],[589,0,589,12],[590,0,590,12],[591,0,591,12],[579,0,579,1],[579,3,579,4],[579,5,579,6],[579,7,579,8],[579,9,579,10],[579,11,579,12],[580,0,580,2],[580,3,580,5],[580,6,580,8],[580,9,580,10],[580,11,580,12],[581,0,581,2],[581,3,581,5],[581,6,581,8],[581,9,581,10],[581,11,581,12],[582,0,582,2],[582,3,582,4],[582,6,582,7],[582,8,582,9],[582,10,582,11],[576,0,576,1],[576,2,576,3],[576,4,576,5],[576,6,576,7],[576,8,576,9],[576,10,576,11],[577,0,577,1],[577,2,577,3],[577,4,577,5],[577,6,577,7],[577,8,577,9],[577,10,577,11],[578,0,578,1],[578,3,578,4],[578,5,578,6],[578,7,578,8],[578,9,578,10],[578,11,578,12],[573,0,573,1],[573,2,573,3],[573,4,573,5],[573,6,573,7],[573,8,573,9],[573,10,573,11],[574,0,574,1],[574,2,574,3],[574,4,574,5],[574,6,574,7],[574,8,574,9],[574,10,574,11],[575,0,575,1],[575,2,575,3],[575,4,575,5],[575,6,575,7],[575,8,575,9],[575,10,575,11],[570,0,570,1],[570,2,570,3],[570,4,570,5],[570,6,570,7],[570,8,570,9],[570,10,570,11],[571,0,571,1],[571,2,571,3],[571,4,571,5],[571,6,571,7],[571,8,571,9],[571,10,571,11],[572,0,572,1],[572,2,572,3],[572,4,572,5],[572,6,572,7],[572,8,572,9],[572,10,572,11],[553,0,554,12],[555,0,555,10],[556,0,557,12],[558,0,558,12],[559,0,559,2],[560,0,560,2],[561,0,561,9],[562,0,562,2],[563,0,563,2],[564,0,564,2],[565,0,565,2],[566,0,566,2],[567,0,567,2],[568,0,568,12],[569,0,569,1],[569,2,569,3],[569,4,569,5],[569,6,569,7],[569,8,569,9],[569,10,569,11],[542,0,542,1],[542,2,542,4],[542,6,542,8],[542,9,542,12],[543,0,543,1],[543,2,543,4],[543,6,543,8],[543,9,543,12],[546,0,546,12],[547,0,547,12],[548,0,548,12],[549,0,549,12],[550,0,550,10],[550,11,550,12],[551,0,551,10],[551,11,551,12],[552,0,552,10],[538,0,538,2],[538,3,538,5],[538,6,538,8],[538,9,538,10],[538,11,538,12],[539,0,539,2],[539,3,539,5],[539,6,539,8],[539,9,539,10],[539,11,539,12],[540,0,540,2],[540,3,540,4],[540,6,540,7],[540,8,540,9],[540,10,540,11],[541,0,541,2],[541,3,541,4],[541,6,541,7],[541,8,541,9],[541,10,541,11],[535,0,535,1],[535,2,535,3],[535,4,535,5],[535,6,535,7],[535,8,535,9],[535,10,535,11],[536,0,536,1],[536,3,536,4],[536,5,536,6],[536,7,536,8],[536,9,536,10],[536,11,536,12],[537,0,537,1],[537,3,537,4],[537,5,537,6],[537,7,537,8],[537,9,537,10],[537,11,537,12],[532,0,532,1],[532,2,532,3],[532,4,532,5],[532,6,532,7],[532,8,532,9],[532,10,532,11],[533,0,533,1],[533,2,533,3],[533,4,533,5],[533,6,533,7],[533,8,533,9],[533,10,533,11],[534,0,534,1],[534,2,534,3],[534,4,534,5],[534,6,534,7],[534,8,534,9],[534,10,534,11],[529,0,529,1],[529,2,529,3],[529,4,529,5],[529,6,529,7],[529,8,529,9],[529,10,529,11],[530,0,530,1],[530,2,530,3],[530,4,530,5],[530,6,530,7],[530,8,530,9],[530,10,530,11],[531,0,531,1],[531,2,531,3],[531,4,531,5],[531,6,531,7],[531,8,531,9],[531,10,531,11],[521,0,521,2],[522,0,522,2],[523,0,523,2],[524,0,524,2],[525,0,525,2],[526,0,526,12],[527,0,527,1],[527,2,527,3],[527,4,527,5],[527,6,527,7],[527,8,527,9],[527,10,527,11],[528,0,528,1],[528,2,528,3],[528,4,528,5],[528,6,528,7],[528,8,528,9],[528,10,528,11],[504,0,504,12],[505,0,505,12],[506,0,506,12],[507,0,507,12],[508,0,508,10],[508,11,508,12],[509,0,509,10],[509,11,509,12],[510,0,510,10],[511,0,512,12],[513,0,513,10],[514,0,515,12],[516,0,516,12],[517,0,517,2],[518,0,518,2],[519,0,519,9],[520,0,520,2],[500,6,500,8],[500,9,500,12],[501,6,501,8],[501,9,501,12],[500,0,500,1],[501,0,501,1],[39,0,39,1],[38,0,38,1],[80,0,80,1],[81,0,81,1],[122,0,122,1],[123,0,123,1],[164,0,164,1],[165,0,165,1],[206,0,206,1],[141,0,141,9],[183,0,183,9],[225,0,225,9],[267,0,267,9],[309,0,309,9],[351,0,351,9],[393,0,393,9],[435,0,435,9],[477,0,477,9],[496,0,496,2],[496,3,496,5],[496,6,496,8],[496,9,496,10],[496,11,496,12],[497,0,497,2],[497,3,497,5],[497,6,497,8],[497,9,497,10],[497,11,497,12],[498,0,498,2],[498,3,498,4],[499,0,499,2],[499,3,499,4],[499,6,499,7],[499,8,499,9],[499,10,499,11],[485,2,485,3],[485,4,485,5],[485,6,485,7],[485,8,485,9],[485,10,485,11],[486,0,486,1],[486,2,486,3],[486,4,486,5],[486,6,486,7],[486,8,486,9],[486,10,486,11],[495,0,495,1],[495,3,495,4],[495,5,495,6],[495,7,495,8],[495,9,495,10],[495,11,495,12],[498,6,498,7],[498,8,498,9],[498,10,498,11],[492,0,492,1],[492,2,492,3],[493,2,493,3],[493,6,493,7],[493,8,493,9],[493,10,493,11],[494,0,494,1],[494,3,494,4],[494,5,494,6],[494,7,494,8],[494,9,494,10],[494,11,494,12],[472,0,473,12],[474,0,474,12],[475,0,475,2],[476,0,476,2],[478,0,478,2],[479,0,479,2],[480,0,480,2],[481,0,481,2],[482,0,482,2],[483,0,483,2],[484,0,484,12],[485,0,485,1],[492,10,492,11],[493,0,493,1],[487,2,487,3],[487,4,487,5],[487,6,487,7],[487,8,487,9],[487,10,487,11],[488,0,488,1],[488,2,488,3],[488,4,488,5],[488,6,488,7],[456,8,456,9],[456,10,456,11],[457,0,457,2],[457,3,457,4],[457,6,457,7],[457,8,457,9],[457,10,457,11],[458,6,458,8],[458,9,458,12],[459,6,459,8],[459,9,459,12],[462,0,462,12],[463,0,463,12],[465,0,465,12],[469,0,470,12],[464,0,464,12],[466,0,466,10],[466,11,466,12],[467,0,467,10],[467,11,467,12],[468,0,468,10],[458,0,458,1],[459,0,459,1],[458,2,458,4],[459,2,459,4],[451,0,451,1],[451,2,451,3],[451,4,451,5],[451,6,451,7],[451,8,451,9],[451,10,451,11],[452,0,452,1],[452,3,452,4],[452,5,452,6],[452,7,452,8],[452,9,452,10],[452,11,452,12],[471,0,471,10],[453,0,453,1],[453,3,453,4],[453,5,453,6],[453,7,453,8],[453,9,453,10],[453,11,453,12],[454,0,454,2],[454,3,454,5],[454,6,454,8],[454,9,454,10],[454,11,454,12],[455,0,455,2],[455,3,455,5],[455,6,455,8],[455,9,455,10],[455,11,455,12],[456,0,456,2],[456,3,456,4],[456,6,456,7],[450,0,450,1],[450,2,450,3],[450,4,450,5],[450,6,450,7],[450,8,450,9],[450,10,450,11],[417,2,417,4],[437,0,437,2],[438,0,438,2],[444,0,444,1],[444,2,444,3],[444,4,444,5],[444,6,444,7],[444,8,444,9],[444,10,444,11],[445,0,445,1],[445,2,445,3],[445,4,445,5],[445,6,445,7],[445,8,445,9],[445,10,445,11],[443,8,443,9],[443,0,443,1],[443,10,443,11],[434,0,434,2],[436,0,436,2],[424,0,424,10],[424,11,424,12],[447,0,447,1],[447,2,447,3],[447,4,447,5],[447,6,447,7],[407,2,407,3],[407,4,407,5],[407,6,407,7],[407,8,407,9],[407,10,407,11],[412,9,412,10],[412,11,412,12],[413,0,413,2],[413,3,413,5],[413,6,413,8],[413,9,413,10],[413,11,413,12],[414,0,414,2],[414,3,414,4],[414,6,414,7],[414,8,414,9],[414,10,414,11],[410,0,410,1],[410,3,410,4],[410,5,410,6],[410,7,410,8],[410,9,410,10],[410,11,410,12],[411,0,411,1],[411,3,411,4],[411,5,411,6],[411,7,411,8],[411,9,411,10],[411,11,411,12],[412,0,412,2],[412,3,412,5],[412,6,412,8],[375,6,375,8],[375,9,375,12],[378,0,378,12],[380,0,380,12],[381,0,381,12],[385,0,386,12],[388,0,389,12],[390,0,390,12],[391,0,391,2],[392,0,392,2],[394,0,394,2],[379,0,379,12],[382,0,382,10],[382,11,382,12],[383,0,383,10],[383,11,383,12],[387,0,387,10],[375,0,375,1],[375,2,375,4],[368,5,368,6],[368,7,368,8],[368,9,368,10],[368,11,368,12],[369,0,369,1],[369,3,369,4],[369,5,369,6],[369,7,369,8],[369,9,369,10],[369,11,369,12],[370,0,370,2],[370,3,370,5],[370,6,370,8],[370,9,370,10],[370,11,370,12],[373,10,373,11],[374,6,374,8],[374,9,374,12],[374,0,374,1],[372,8,372,9],[372,10,372,11],[373,0,373,2],[373,3,373,4],[373,6,373,7],[373,8,373,9],[368,0,368,1],[368,3,368,4],[340,11,340,12],[341,0,341,10],[341,11,341,12],[333,0,333,1],[359,4,359,5],[359,6,359,7],[361,6,361,7],[361,8,361,9],[361,10,361,11],[362,0,362,1],[362,2,362,3],[362,4,362,5],[362,6,362,7],[362,8,362,9],[362,10,362,11],[363,0,363,1],[363,2,363,3],[363,4,363,5],[363,6,363,7],[363,8,363,9],[363,10,363,11],[361,0,361,1],[361,2,361,3],[361,4,361,5],[350,0,350,2],[352,0,352,2],[353,0,353,2],[349,0,349,2],[333,6,333,8],[333,9,333,12],[336,0,336,12],[337,0,337,12],[313,0,313,2],[314,0,314,2],[323,4,323,5],[323,6,323,7],[323,8,323,9],[323,10,323,11],[325,0,325,1],[325,2,325,3],[325,4,325,5],[325,6,325,7],[325,8,325,9],[325,10,325,11],[322,2,322,3],[322,4,322,5],[322,6,322,7],[322,8,322,9],[326,0,326,1],[326,3,326,4],[326,5,326,6],[326,7,326,8],[326,9,326,10],[326,11,326,12],[322,10,322,11],[323,0,323,1],[323,2,323,3],[301,0,302,12],[304,0,305,12],[316,0,316,12],[319,2,319,3],[319,4,319,5],[319,6,319,7],[319,8,319,9],[319,10,319,11],[320,2,320,3],[320,4,320,5],[320,6,320,7],[320,8,320,9],[320,10,320,11],[307,0,307,2],[308,0,308,2],[321,0,321,1],[321,2,321,3],[321,4,321,5],[321,6,321,7],[321,8,321,9],[321,10,321,11],[317,6,317,7],[318,0,318,1],[318,2,318,3],[317,0,317,1],[317,2,317,3],[317,4,317,5],[320,0,320,1],[317,8,317,9],[317,10,317,11],[311,0,311,2],[312,0,312,2],[279,2,279,3],[277,6,277,7],[299,0,299,10],[299,11,299,12],[285,0,285,1],[285,3,285,4],[306,0,306,12],[310,0,310,2],[315,0,315,2],[288,0,288,2],[288,3,288,4],[288,6,288,7],[288,8,288,9],[288,10,288,11],[289,0,289,2],[289,3,289,4],[289,6,289,7],[289,8,289,9],[289,10,289,11],[290,6,290,8],[290,9,290,12],[291,6,291,8],[291,9,291,12],[295,0,295,12],[290,0,290,1],[291,0,291,1],[287,0,287,2],[287,3,287,5],[287,6,287,8],[287,9,287,10],[287,11,287,12],[296,0,296,12],[249,0,249,1],[261,0,261,10],[273,0,273,2],[274,0,274,12],[279,6,279,7],[279,8,279,9],[279,10,279,11],[280,0,280,1],[280,2,280,3],[280,4,280,5],[280,6,280,7],[280,8,280,9],[280,10,280,11],[281,0,281,1],[281,2,281,3],[281,4,281,5],[281,6,281,7],[281,8,281,9],[281,10,281,11],[278,0,278,1],[276,0,276,1],[276,2,276,3],[276,4,276,5],[276,6,276,7],[276,8,276,9],[276,10,276,11],[278,2,278,3],[278,4,278,5],[278,6,278,7],[279,0,279,1],[278,8,278,9],[278,10,278,11],[244,6,244,8],[233,6,233,7],[259,0,260,12],[262,0,263,12],[264,0,264,12],[268,0,268,2],[269,0,269,2],[265,0,265,2],[266,0,266,2],[256,0,256,10],[256,11,256,12],[257,0,257,10],[257,11,257,12],[270,0,270,2],[271,0,271,2],[272,0,272,2],[246,0,246,2],[246,3,246,4],[246,6,246,7],[246,8,246,9],[246,10,246,11],[247,0,247,2],[247,3,247,4],[247,6,247,7],[247,8,247,9],[247,10,247,11],[248,6,248,8],[248,9,248,12],[249,6,249,8],[249,9,249,12],[254,0,254,12],[248,0,248,1],[242,3,242,4],[227,0,227,2],[228,0,228,2],[229,0,229,2],[230,0,230,2],[231,0,231,2],[232,0,232,12],[237,2,237,3],[237,4,237,5],[237,6,237,7],[237,8,237,9],[236,8,236,9],[236,10,236,11],[235,4,235,5],[236,0,236,1],[236,2,236,3],[236,4,236,5],[236,6,236,7],[238,4,238,5],[238,6,238,7],[237,10,237,11],[241,0,241,1],[241,2,241,3],[241,4,241,5],[241,6,241,7],[241,8,241,9],[241,10,241,11],[238,0,238,1],[220,0,221,12],[222,0,222,12],[234,4,234,5],[234,6,234,7],[233,0,233,1],[223,0,223,2],[226,0,226,2],[234,0,234,1],[234,2,234,3],[233,2,233,3],[233,4,233,5],[235,8,235,9],[235,10,235,11],[235,0,235,1],[235,2,235,3],[243,11,243,12],[244,0,244,2],[244,3,244,5],[244,9,244,10],[244,11,244,12],[235,6,235,7],[233,8,233,9],[233,10,233,11],[234,8,234,9],[234,10,234,11],[242,0,242,1],[242,5,242,6],[242,7,242,8],[242,9,242,10],[242,11,242,12],[237,0,237,1],[238,2,238,3],[206,6,206,8],[206,9,206,12],[199,0,199,1],[199,2,199,3],[199,4,199,5],[199,6,199,7],[199,8,199,9],[199,10,199,11],[200,0,200,1],[200,5,200,6],[200,7,200,8],[200,9,200,10],[200,11,200,12],[201,0,201,1],[201,5,201,6],[201,7,201,8],[201,9,201,10],[201,11,201,12],[202,0,202,2],[202,3,202,5],[202,9,202,10],[202,11,202,12],[203,0,203,2],[203,3,203,5],[203,9,203,10],[203,11,203,12],[200,3,200,4],[191,6,191,7],[194,0,194,1],[194,2,194,3],[194,4,194,5],[194,6,194,7],[198,0,198,1],[198,2,198,3],[198,4,198,5],[198,6,198,7],[198,8,198,9],[198,10,198,11],[195,8,195,9],[197,0,197,1],[192,0,192,1],[194,10,194,11],[192,6,192,7],[193,0,193,1],[195,4,195,5],[195,6,195,7],[196,0,196,1],[191,0,191,1],[191,8,191,9],[188,0,188,2],[189,0,189,2],[165,6,165,8],[184,0,184,2],[185,0,185,2],[172,0,172,10],[172,11,172,12],[173,0,173,10],[173,11,173,12],[171,0,171,12],[180,0,180,12],[196,2,196,3],[196,4,196,5],[196,6,196,7],[196,8,196,9],[196,10,196,11],[193,2,193,3],[193,4,193,5],[193,6,193,7],[192,8,192,9],[192,10,192,11],[193,8,193,9],[193,10,193,11],[194,8,194,9],[195,0,195,1],[195,2,195,3],[195,10,195,11],[191,10,191,11],[192,2,192,3],[192,4,192,5],[191,2,191,3],[191,4,191,5],[159,0,159,1],[159,5,159,6],[164,6,164,8],[164,9,164,12],[160,0,160,2],[160,3,160,5],[160,6,160,8],[161,6,161,8],[165,9,165,12],[169,0,169,12],[170,0,170,12],[178,0,179,12],[186,0,186,2],[187,0,187,2],[175,0,176,12],[182,0,182,2],[181,0,181,2],[160,9,160,10],[160,11,160,12],[161,0,161,2],[161,3,161,5],[161,9,161,10],[161,11,161,12],[162,0,162,2],[162,3,162,4],[162,6,162,7],[162,8,162,9],[162,10,162,11],[163,0,163,2],[163,3,163,4],[163,8,163,9],[163,10,163,11],[113,2,113,3],[113,4,113,5],[113,6,113,7],[115,2,115,3],[115,4,115,5],[115,6,115,7],[115,8,115,9],[115,10,115,11],[142,0,142,2],[143,0,143,2],[151,2,151,3],[151,4,151,5],[151,6,151,7],[152,0,152,1],[152,2,152,3],[159,7,159,8],[159,9,159,10],[159,11,159,12],[158,11,158,12],[159,3,159,4],[152,6,152,7],[153,0,153,1],[153,2,153,3],[153,4,153,5],[153,6,153,7],[155,0,155,1],[156,0,156,1],[156,2,156,3]],"merged_total":1756,"flags":["merged_cut"]}
["Multiple articles",null,null,null,null,null,null,null,null,null,null,null,null,null,null,"Press button to insert pictures for all of the article numbers."]
["Fill in one product registration and provide data pr. article below, provided product registration details apply"]
["DS article number"]
[]
["Vendor article number",null,null,null,null,null,null,null,null,null,null,"Release data"]
[]
["Article description (english, max 40 characters)",null,null,null,null,null,null,null,null,null,null,"No. Cha.",{"$f":"LEN(A8)","v":0}]
[]
[]
["Article description (danish, max 40 characters)",null,null,null,null,null,null,null,null,null,null,"No. Cha.",{"$f":"LEN(A11)","v":0}]
[]
[]
["Order data"]
[null,null,null,"føtex","Føtex food","Bilka","Bilka.dk","Netto","Døgn Netto","Salling"]
["Buying price per unit"]
["Sales data"]
[null,null,null,"føtex","Føtex food","Bilka","Bilka.dk","Netto","Døgn Netto","Salling"]
["Rec. sales price"]
["Sales price"]
["Bonus buy price"]
["DC mark up"]
["DC in price (co-ex)"]
["Logistics data"]
["Dimensions ",null,"Sales unit",null,null,null,"Carton",null,"Outer carton",null,"Pallet",null,"Pallet type"]
["EAN",null,null,null,"EAN",null,null,null,null,null,null,null,"1,5/1"]
["Gross weight (g)",null,null,null,"Gross weight (g)"]
["Net weight (g)",null,null,null,"Net weight (g)",null,null,null,null,null,null,null,"1/1"]
["Height (mm)",null,null,null,"Shortest (mm)"]
["Width (mm)",null,null,null,"Medium (mm)",null,null,null,null,null,null,null,"1/2"]
["Depth (mm)",null,null,null,"Longest (mm)"]
["Net content",null,null,null,"Net content",null,null,null,null,null,null,null,"1/4"]
["Content Unit",null,null,null,"Content Unit"]
["SU pr. UOM",null,"Durability","Supplier durability",null,"Wharehouse durability",null,"Store durability",null,"Customer durability",null,"Optimization unit"]
[]
["Number of sales units per Carton",null,null,"Number of cartons per outer carton",null,null,"Number of cartons per layer",null,null,"No. of cartons/pallet",null,"Order unit/EAN"]
[]
["Temperature requirements",null,null,"Min. Order",null,"Extract","AU-Price",null,"AU-Price dates from",null,"AU-Price dates to",null,"Order unit"]
[null,null,null,null,null," "]
["Minimum stock",null,"ISBN",null,null,"AH (Base)","WEEE product weight",null,null,"WEEE Batteries weight and type"]
[]
[]
[]
["Multiple articles"]
["Fill in one product registration and provide data pr. article below, provided product registration details apply"]
["DS article number"]
[]
["Vendor article number",null,null,null,null,null,null,null,null,null,null,"Release data"]
[]
["Article description (english, max 40 characters)",null,null,null,null,null,null,null,null,null,null,"No. Cha.",{"$f":"LEN(A50)","v":0}]
[]
[]
["Article description (danish, max 40 characters)",null,null,null,null,null,null,null,null,null,null,"No. Cha.",{"$f":"LEN(A53)","v":0}]
[]
[]
["Order data"]
[null,null,null,"føtex","Føtex food","Bilka","Bilka.dk","Netto","Døgn Netto","Salling"]
["Buying price per unit"]
["Sales data"]
[null,null,null,"føtex","Føtex food","Bilka","Bilka.dk","Netto","Døgn Netto","Salling"]
["Rec. sales price"]
["Sales price"]
["Bonus buy price"]
["DC mark up"]
["DC in price (co-ex)"]
["Logistics data"]
["Dimensions ",null,"Sales unit",null,null,null,"Carton",null,"Outer carton",null,"Pallet",null,"Pallet type"]
["EAN",null,null,null,"EAN",null,null,null,null,null,null,null,"1,5/1"]
["Gross weight (g)",null,null,null,"Gross weight (g)"]
["Net weight (g)",null,null,null,"Net weight (g)",null,null,null,null,null,null,null,"1/1"]
["Height (mm)",null,null,null,"Shortest (mm)"]
["Width (mm)",null,null,null,"Medium (mm)",null,null,null,null,null,null,null,"1/2"]
["Depth (mm)",null,null,null,"Longest (mm)"]
["Net content",null,null,null,"Net content",null,null,null,null,null,null,null,"1/4"]
["Content Unit",null,null,null,"Content Unit"]
["SU pr. UOM",null,"Durability","Supplier durability",null,"Wharehouse durability",null,"Store durability",null,"Customer durability",null,"Optimization unit"]
[]
["Number of sales units per Carton",null,null,"Number of cartons per outer carton",null,null,"Number of cartons per layer",null,null,"No. of cartons/pallet",null,"Order unit/EAN"]
[]
["Temperature requirements",null,null,"Min. Order",null,"Extract","AU-Price",null,"AU-Price dates from",null,"AU-Price dates to",null,"Order unit"]
[null,null,null,null,null," "]
["Minimum stock",null,"ISBN",null,null,"AH (Base)","WEEE product weight",null,null,"WEEE Batteries weight and type"]
[]
[]
[]
["Multiple articles"]
["Fill in one product registration and provide data pr. article below, provided product registration details apply"]
["DS article number"]
[]
["Vendor article number",null,null,null,null,null,null,null,null,null,null,"Release data"]
[]
["Article description (english, max 40 characters)",null,null,null,null,null,null,null,null,null,null,"No. Cha.",{"$f":"LEN(A92)","v":0}]
[]
[]
["Article description (danish, max 40 characters)",null,null,null,null,null,null,null,null,null,null,"No. Cha.",{"$f":"LEN(A95)","v":0}]
[]
[]
["Order data"]
[null,null,null,"føtex","Føtex food","Bilka","Bilka.dk","Netto","Døgn Netto","Salling"]
["Buying price per unit"]
["Sales data"]
[null,null,null,"føtex","Føtex food","Bilka","Bilka.dk","Netto","Døgn Netto","Salling"]
["Rec. sales price"]
["Sales price"]
["Bonus buy price"]
["DC mark up"]
["DC in price (co-ex)"]
["Logistics data"]
["Dimensions ",null,"Sales unit",null,null,null,"Carton",null,"Outer carton",null,"Pallet",null,"Pallet type"]
["EAN",null,null,null,"EAN",null,null,null,null,null,null,null,"1,5/1"]
["Gross weight (g)",null,null,null,"Gross weight (g)"]
["Net weight (g)",null,null,null,"Net weight (g)",null,null,null,null,null,null,null,"1/1"]
["Height (mm)",null,null,null,"Shortest (mm)"]
["Width (mm)",null,null,null,"Medium (mm)",null,null,null,null,null,null,null,"1/2"]
["Depth (mm)",null,null,null,"Longest (mm)"]
["Net content",null,null,null,"Net content",null,null,null,null,null,null,null,"1/4"]
["Content Unit",null,null,null,"Content Unit"]
["SU pr. UOM",null,"Durability","Supplier durability",null,"Wharehouse durability",null,"Store durability",null,"Customer durability",null,"Optimization unit"]
[]
["Number of sales units per Carton",null,null,"Number of cartons per outer carton",null,null,"Number of cartons per layer",null,null,"No. of cartons/pallet",null,"Order unit/EAN"]
[]
["Temperature requirements",null,null,"Min. Order",null,"Extract","AU-Price",null,"AU-Price dates from",null,"AU-Price dates to",null,"Order unit"]
[null,null,null,null,null," "]
["Minimum stock",null,"ISBN",null,null,"AH (Base)","WEEE product weight",null,null,"WEEE Batteries weight and type"]
[]
[]
[]
["Multiple articles"]
["Fill in one product registration and provide data pr. article below, provided product registration details apply"]
["DS article number"]
[]
["Vendor article number",null,null,null,null,null,null,null,null,null,null,"Release data"]
[]
["Article description (english, max 40 characters)",null,null,null,null,null,null,null,null,null,null,"No. Cha.",{"$f":"LEN(A134)","v":0}]
[]
[]
["Article description (danish, max 40 characters)",null,null,null,null,null,null,null,null,null,null,"No. Cha.",{"$f":"LEN(A137)","v":0}]
[]
[]
["Order data"]
[null,null,null,"føtex","Føtex food","Bilka","Bilka.dk","Netto","Døgn Netto","Salling"]
["Buying price per unit"]
["Sales data"]
[null,null,null,"føtex","Føtex food","Bilka","Bilka.dk","Netto","Døgn Netto","Salling"]
["Rec. sales price"]
["Sales price"]
["Bonus buy price"]
["DC mark up"]
["DC in price (co-ex)"]
["Logistics data"]
["Dimensions ",null,"Sales unit",null,null,null,"Carton",null,"Outer carton",null,"Pallet",null,"Pallet type"]
["EAN",null,null,null,"EAN",null,null,null,null,null,null,null,"1,5/1"]
["Gross weight (g)",null,null,null,"Gross weight (g)"]
["Net weight (g)",null,null,null,"Net weight (g)",null,null,null,null,null,null,null,"1/1"]
["Height (mm)",null,null,null,"Shortest (mm)"]
["Width (mm)",null,null,null,"Medium (mm)",null,null,null,null,null,null,null,"1/2"]
["Depth (mm)",null,null,null,"Longest (mm)"]
["Net content",null,null,null,"Net content",null,null,null,null,null,null,null,"1/4"]
["Content Unit",null,null,null,"Content Unit"]
["SU pr. UOM",null,"Durability","Supplier durability",null,"Wharehouse durability",null,"Store durability",null,"Customer durability",null,"Optimization unit"]
[]
["Number of sales units per Carton",null,null,"Number of cartons per outer carton",null,null,"Number of cartons per layer",null,null,"No. of cartons/pallet",null,"Order unit/EAN"]
[]
["Temperature requirements",null,null,"Min. Order",null,"Extract","AU-Price",null,"AU-Price dates from",null,"AU-Price dates to",null,"Order unit"]
[null,null,null,null,null," "]
["Minimum stock",null,"ISBN",null,null,"AH (Base)","WEEE product weight",null,null,"WEEE Batteries weight and type"]
[]
[]
[]
["Multiple articles"]
["Fill in one product registration and provide data pr. article below, provided product registration details apply"]
["DS article number"]
[]
["Vendor article number",null,null,null,null,null,null,null,null,null,null,"Release data"]
[]
["Article description (english, max 40 characters)",null,null,null,null,null,null,null,null,null,null,"No. Cha.",{"$f":"LEN(A176)","v":0}]
[]
[]
["Article description (danish, max 40 characters)",null,null,null,null,null,null,null,null,null,null,"No. Cha.",{"$f":"LEN(A179)","v":0}]
[]
[]
["Order data"]
[null,null,null,"føtex","Føtex food","Bilka","Bilka.dk","Netto","Døgn Netto","Salling"]
["Buying price per unit"]
["Sales data"]
[null,null,null,"føtex","Føtex food","Bilka","Bilka.dk","Netto","Døgn Netto","Salling"]
["Rec. sales price"]
["Sales price"]
["Bonus buy price"]
["DC mark up"]
["DC in price (co-ex)"]
["Logistics data"]
["Dimensions ",null,"Sales unit",null,null,null,"Carton",null,"Outer carton",null,"Pallet",null,"Pallet type"]
["EAN",null,null,null,"EAN",null,null,null,null,null,null,null,"1,5/1"]
["Gross weight (g)",null,null,null,"Gross weight (g)"]
["Net weight (g)",null,null,null,"Net weight (g)",null,null,null,null,null,null,null,"1/1"]
["Height (mm)",null,null,null,"Shortest (mm)"]
["Width (mm)",null,null,null,"Medium (mm)",null,null,null,null,null,null,null,"1/2"]
["Depth (mm)",null,null,null,"Longest (mm)"]
["Net content",null,null,null,"Net content",null,null,null,null,null,null,null,"1/4"]
["Content Unit",null,null,null,"Content Unit"]
["SU pr. UOM",null,"Durability","Supplier durability",null,"Wharehouse durability",null,"Store durability",null,"Customer durability",null,"Optimization unit"]
[]
["Number of sales units per Carton",null,null,"Number of cartons per outer carton",null,null,"Number of cartons per layer",null,null,"No. of cartons/pallet",null,"Order unit/EAN"]
[]
["Temperature requirements",null,null,"Min. Order",null,"Extract","AU-Price",null,"AU-Price dates from",null,"AU-Price dates to",null,"Order unit"]
[null,null,null,null,null," "]
["Minimum stock",null,"ISBN",null,null,"AH (Base)","WEEE product weight",null,null,"WEEE Batteries weight and type"]
[]
[]
[]
["Multiple articles"]
["Fill in one product registration and provide data pr. article below, provided product registration details apply"]
["DS article number"]
[]
["Vendor article number",null,null,null,null,null,null,null,null,null,null,"Release data"]
[]
["Article description (english, max 40 characters)",null,null,null,null,null,null,null,null,null,null,"No. Cha.",{"$f":"LEN(A218)","v":0}]
[]
[]
["Article description (danish, max 40 characters)",null,null,null,null,null,null,null,null,null,null,"No. Cha.",{"$f":"LEN(A221)","v":0}]
[]
[]
["Order data"]
[null,null,null,"føtex","Føtex food","Bilka","Bilka.dk","Netto","Døgn Netto","Salling"]
["Buying price per unit"]
["Sales data"]
[null,null,null,"føtex","Føtex food","Bilka","Bilka.dk","Netto","Døgn Netto","Salling"]
["Rec. sales price"]
["Sales price"]
["Bonus buy price"]
["DC mark up"]
["DC in price (co-ex)"]
["Logistics data"]
["Dimensions ",null,"Sales unit",null,null,null,"Carton",null,"Outer carton",null,"Pallet",null,"Pallet type"]
["EAN",null,null,null,"EAN",null,null,null,null,null,null,null,"1,5/1"]
["Gross weight (g)",null,null,null,"Gross weight (g)"]
["Net weight (g)",null,null,null,"Net weight (g)",null,null,null,null,null,null,null,"1/1"]
["Height (mm)",null,null,null,"Shortest (mm)"]
["Width (mm)",null,null,null,"Medium (mm)",null,null,null,null,null,null,null,"1/2"]
["Depth (mm)",null,null,null,"Longest (mm)"]
["Net content",null,null,null,"Net content",null,null,null,null,null,null,null,"1/4"]
["Content Unit",null,null,null,"Content Unit"]
["SU pr. UOM",null,"Durability","Supplier durability",null,"Wharehouse durability",null,"Store durability",null,"Customer durability",null,"Optimization unit"]
[]
["Number of sales units per Carton",null,null,"Number of cartons per outer carton",null,null,"Number of cartons per layer",null,null,"No. of cartons/pallet",null,"Order unit/EAN"]
[]
["Temperature requirements",null,null,"Min. Order",null,"Extract","AU-Price",null,"AU-Price dates from",null,"AU-Price dates to",null,"Order unit"]
[null,null,null,null,null," "]
["Minimum stock",null,"ISBN",null,null,"AH (Base)","WEEE product weight",null,null,"WEEE Batteries weight and type"]
[]
[]
[]
["Multiple articles"]
["Fill in one product registration and provide data pr. article below, provided product registration details apply"]
["DS article number"]
[]
["Vendor article number",null,null,null,null,null,null,null,null,null,null,"Release data"]
[]
["Article description (english, max 40 characters)",null,null,null,null,null,null,null,null,null,null,"No. Cha.",{"$f":"LEN(A260)","v":0}]
[]
[]
["Article description (danish, max 40 characters)",null,null,null,null,null,null,null,null,null,null,"No. Cha.",{"$f":"LEN(A263)","v":0}]
[]
[]
["Order data"]
[null,null,null,"føtex","Føtex food","Bilka","Bilka.dk","Netto","Døgn Netto","Salling"]
["Buying price per unit"]
["Sales data"]
[null,null,null,"føtex","Føtex food","Bilka","Bilka.dk","Netto","Døgn Netto","Salling"]
["Rec. sales price"]
["Sales price"]
["Bonus buy price"]
["DC mark up"]
["DC in price (co-ex)"]
["Logistics data"]
["Dimensions ",null,"Sales unit",null,null,null,"Carton",null,"Outer carton",null,"Pallet",null,"Pallet type"]
["EAN",null,null,null,"EAN",null,null,null,null,null,null,null,"1,5/1"]
["Gross weight (g)",null,null,null,"Gross weight (g)"]
["Net weight (g)",null,null,null,"Net weight (g)",null,null,null,null,null,null,null,"1/1"]
["Height (mm)",null,null,null,"Shortest (mm)"]
["Width (mm)",null,null,null,"Medium (mm)",null,null,null,null,null,null,null,"1/2"]
["Depth (mm)",null,null,null,"Longest (mm)"]
["Net content",null,null,null,"Net content",null,null,null,null,null,null,null,"1/4"]
["Content Unit",null,null,null,"Content Unit"]
["SU pr. UOM",null,"Durability","Supplier durability",null,"Wharehouse durability",null,"Store durability",null,"Customer durability",null,"Optimization unit"]
[]
["Number of sales units per Carton",null,null,"Number of cartons per outer carton",null,null,"Number of cartons per layer",null,null,"No. of cartons/pallet",null,"Order unit/EAN"]
[]
["Temperature requirements",null,null,"Min. Order",null,"Extract","AU-Price",null,"AU-Price dates from",null,"AU-Price dates to",null,"Order unit"]
[null,null,null,null,null," "]
["Minimum stock",null,"ISBN",null,null,"AH (Base)","WEEE product weight",null,null,"WEEE Batteries weight and type"]
[]
[]
[]
["Multiple articles"]
["Fill in one product registration and provide data pr. article below, provided product registration details apply"]
["DS article number"]
[]
["Vendor article number",null,null,null,null,null,null,null,null,null,null,"Release data"]
[]
["Article description (english, max 40 characters)",null,null,null,null,null,null,null,null,null,null,"No. Cha.",{"$f":"LEN(A302)","v":0}]
[]
[]
["Article description (danish, max 40 characters)",null,null,null,null,null,null,null,null,null,null,"No. Cha.",{"$f":"LEN(A305)","v":0}]
[]
[]
["Order data"]
[null,null,null,"føtex","Føtex food","Bilka","Bilka.dk","Netto","Døgn Netto","Salling"]
["Buying price per unit"]
["Sales data"]
[null,null,null,"føtex","Føtex food","Bilka","Bilka.dk","Netto","Døgn Netto","Salling"]
["Rec. sales price"]
["Sales price"]
["Bonus buy price"]
["DC mark up"]
["DC in price (co-ex)"]
["Logistics data"]
["Dimensions ",null,"Sales unit",null,null,null,"Carton",null,"Outer carton",null,"Pallet",null,"Pallet type"]
["EAN",null,null,null,"EAN",null,null,null,null,null,null,null,"1,5/1"]
["Gross weight (g)",null,null,null,"Gross weight (g)"]
["Net weight (g)",null,null,null,"Net weight (g)",null,null,null,null,null,null,null,"1/1"]
["Height (mm)",null,null,null,"Shortest (mm)"]
["Width (mm)",null,null,null,"Medium (mm)",null,null,null,null,null,null,null,"1/2"]
["Depth (mm)",null,null,null,"Longest (mm)"]
["Net content",null,null,null,"Net content",null,null,null,null,null,null,null,"1/4"]
["Content Unit",null,null,null,"Content Unit"]
["SU pr. UOM",null,"Durability","Supplier durability",null,"Wharehouse durability",null,"Store durability",null,"Customer durability",null,"Optimization unit"]
[]
["Number of sales units per Carton",null,null,"Number of cartons per outer carton",null,null,"Number of cartons per layer",null,null,"No. of cartons/pallet",null,"Order unit/EAN"]
[]
["Temperature requirements",null,null,"Min. Order",null,"Extract","AU-Price",null,"AU-Price dates from",null,"AU-Price dates to",null,"Order unit"]
[null,null,null,null,null," "]
["Minimum stock",null,"ISBN",null,null,"AH (Base)","WEEE product weight",null,null,"WEEE Batteries weight and type"]
[]
[]
[]
["Multiple articles"]
["Fill in one product registration and provide data pr. article below, provided product registration details apply"]
["DS article number"]
[]
["Vendor article number",null,null,null,null,null,null,null,null,null,null,"Release data"]
[]
["Article description (english, max 40 characters)",null,null,null,null,null,null,null,null,null,null,"No. Cha.",{"$f":"LEN(A344)","v":0}]
[]
[]
["Article description (danish, max 40 characters)",null,null,null,null,null,null,null,null,null,null,"No. Cha.",{"$f":"LEN(A347)","v":0}]
[]
[]
["Order data"]
[null,null,null,"føtex","Føtex food","Bilka","Bilka.dk","Netto","Døgn Netto","Salling"]
["Buying price per unit"]
["Sales data"]
[null,null,null,"føtex","Føtex food","Bilka","Bilka.dk","Netto","Døgn Netto","Salling"]
["Rec. sales price"]
["Sales price"]
["Bonus buy price"]
["DC mark up"]
["DC in price (co-ex)"]
["Logistics data"]
["Dimensions ",null,"Sales unit",null,null,null,"Carton",null,"Outer carton",null,"Pallet",null,"Pallet type"]
["EAN",null,null,null,"EAN",null,null,null,null,null,null,null,"1,5/1"]
["Gross weight (g)",null,null,null,"Gross weight (g)"]
["Net weight (g)",null,null,null,"Net weight (g)",null,null,null,null,null,null,null,"1/1"]
["Height (mm)",null,null,null,"Shortest (mm)"]
["Width (mm)",null,null,null,"Medium (mm)",null,null,null,null,null,null,null,"1/2"]
["Depth (mm)",null,null,null,"Longest (mm)"]
["Net content",null,null,null,"Net content",null,null,null,null,null,null,null,"1/4"]
["Content Unit",null,null,null,"Content Unit"]
["SU pr. UOM",null,"Durability","Supplier durability",null,"Wharehouse durability",null,"Store durability",null,"Customer durability",null,"Optimization unit"]
[]
["Number of sales units per Carton",null,null,"Number of cartons per outer carton",null,null,"Number of cartons per layer",null,null,"No. of cartons/pallet",null,"Order unit/EAN"]
[]
["Temperature requirements",null,null,"Min. Order",null,"Extract","AU-Price",null,"AU-Price dates from",null,"AU-Price dates to",null,"Order unit"]
[null,null,null,null,null," "]
["Minimum stock",null,"ISBN",null,null,"AH (Base)","WEEE product weight",null,null,"WEEE Batteries weight and type"]
[]
[]
[]
["Multiple articles"]
["Fill in one product registration and provide data pr. article below, provided product registration details apply"]
["DS article number"]
[]
["Vendor article number",null,null,null,null,null,null,null,null,null,null,"Release data"]
[]
["Article description (english, max 40 characters)",null,null,null,null,null,null,null,null,null,null,"No. Cha.",{"$f":"LEN(A386)","v":0}]
[]
[]
["Article description (danish, max 40 characters)",null,null,null,null,null,null,null,null,null,null,"No. Cha.",{"$f":"LEN(A389)","v":0}]
[]
[]
["Order data"]
[null,null,null,"føtex","Føtex food","Bilka","Bilka.dk","Netto","Døgn Netto","Salling"]
["Buying price per unit"]
["Sales data"]
[null,null,null,"føtex","Føtex food","Bilka","Bilka.dk","Netto","Døgn Netto","Salling"]
["Rec. sales price"]
["Sales price"]
["Bonus buy price"]
["DC mark up"]
["DC in price (co-ex)"]
["Logistics data"]
["Dimensions ",null,"Sales unit",null,null,null,"Carton",null,"Outer carton",null,"Pallet",null,"Pallet type"]
["EAN",null,null,null,"EAN",null,null,null,null,null,null,null,"1,5/1"]
["Gross weight (g)",null,null,null,"Gross weight (g)"]
["Net weight (g)",null,null,null,"Net weight (g)",null,null,null,null,null,null,null,"1/1"]
["Height (mm)",null,null,null,"Shortest (mm)"]
["Width (mm)",null,null,null,"Medium (mm)",null,null,null,null,null,null,null,"1/2"]
["Depth (mm)",null,null,null,"Longest (mm)"]
["Net content",null,null,null,"Net content",null,null,null,null,null,null,null,"1/4"]
["Content Unit",null,null,null,"Content Unit"]
["SU pr. UOM",null,"Durability","Supplier durability",null,"Wharehouse durability",null,"Store durability",null,"Customer durability",null,"Optimization unit"]
[]
["Number of sales units per Carton",null,null,"Number of cartons per outer carton",null,null,"Number of cartons per layer",null,null,"No. of cartons/pallet",null,"Order unit/EAN"]
[]
["Temperature requirements",null,null,"Min. Order",null,"Extract","AU-Price",null,"AU-Price dates from",null,"AU-Price dates to",null,"Order unit"]
[null,null,null,null,null," "]
["Minimum stock",null,"ISBN",null,null,"AH (Base)","WEEE product weight",null,null,"WEEE Batteries weight and type"]
[]
[]
[]
["Multiple articles"]
["Fill in one product registration and provide data pr. article below, provided product registration details apply"]
["DS article number"]
[]
["Vendor article number",null,null,null,null,null,null,null,null,null,null,"Release data"]
[]
["Article description (english, max 40 characters)",null,null,null,null,null,null,null,null,null,null,"No. Cha.",{"$f":"LEN(A428)","v":0}]
[]
[]
["Article description (danish, max 40 characters)",null,null,null,null,null,null,null,null,null,null,"No. Cha.",{"$f":"LEN(A431)","v":0}]
[]
[]
["Order data"]
[null,null,null,"føtex","Føtex food","Bilka","Bilka.dk","Netto","Døgn Netto","Salling"]
["Buying price per unit"]
["Sales data"]
[null,null,null,"føtex","Føtex food","Bilka","Bilka.dk","Netto","Døgn Netto","Salling"]
["Rec. sales price"]
["Sales price"]
["Bonus buy price"]
["DC mark up"]
["DC in price (co-ex)"]
["Logistics data"]
["Dimensions ",null,"Sales unit",null,null,null,"Carton",null,"Outer carton",null,"Pallet",null,"Pallet type"]
["EAN",null,null,null,"EAN",null,null,null,null,null,null,null,"1,5/1"]
["Gross weight (g)",null,null,null,"Gross weight (g)"]
["Net weight (g)",null,null,null,"Net weight (g)",null,null,null,null,null,null,null,"1/1"]
["Height (mm)",null,null,null,"Shortest (mm)"]
["Width (mm)",null,null,null,"Medium (mm)",null,null,null,null,null,null,null,"1/2"]
["Depth (mm)",null,null,null,"Longest (mm)"]
["Net content",null,null,null,"Net content",null,null,null,null,null,null,null,"1/4"]
["Content Unit",null,null,null,"Content Unit"]
["SU pr. UOM",null,"Durability","Supplier durability",null,"Wharehouse durability",null,"Store durability",null,"Customer durability",null,"Optimization unit"]
[]
["Number of sales units per Carton",null,null,"Number of cartons per outer carton",null,null,"Number of cartons per layer",null,null,"No. of cartons/pallet",null,"Order unit/EAN"]
[]
["Temperature requirements",null,null,"Min. Order",null,"Extract","AU-Price",null,"AU-Price dates from",null,"AU-Price dates to",null,"Order unit"]
[null,null,null,null,null," "]
["Minimum stock",null,"ISBN",null,null,"AH (Base)","WEEE product weight",null,null,"WEEE Batteries weight and type"]
[]
[]
[]
["Multiple articles"]
["Fill in one product registration and provide data pr. article below, provided product registration details apply"]
["DS article number"]
[]
["Vendor article number",null,null,null,null,null,null,null,null,null,null,"Release data"]
[]
["Article description (english, max 40 characters)",null,null,null,null,null,null,null,null,null,null,"No. Cha.",{"$f":"LEN(A470)","v":0}]
[]
[]
["Article description (danish, max 40 characters)",null,null,null,null,null,null,null,null,null,null,"No. Cha.",{"$f":"LEN(A473)","v":0}]
[]
[]
["Order data"]
[null,null,null,"føtex","Føtex food","Bilka","Bilka.dk","Netto","Døgn Netto","Salling"]
["Buying price per unit"]
["Sales data"]
[null,null,null,"føtex","Føtex food","Bilka","Bilka.dk","Netto","Døgn Netto","Salling"]
["Rec. sales price"]
["Sales price"]
["Bonus buy price"]
["DC mark up"]
["DC in price (co-ex)"]
["Logistics data"]
["Dimensions ",null,"Sales unit",null,null,null,"Carton",null,"Outer carton",null,"Pallet",null,"Pallet type"]
["EAN",null,null,null,"EAN",null,null,null,null,null,null,null,"1,5/1"]
["Gross weight (g)",null,null,null,"Gross weight (g)"]
["Net weight (g)",null,null,null,"Net weight (g)",null,null,null,null,null,null,null,"1/1"]
["Height (mm)",null,null,null,"Shortest (mm)"]
["Width (mm)",null,null,null,"Medium (mm)",null,null,null,null,null,null,null,"1/2"]
["Depth (mm)",null,null,null,"Longest (mm)"]
["Net content",null,null,null,"Net content",null,null,null,null,null,null,null,"1/4"]
["Content Unit",null,null,null,"Content Unit"]
["SU pr. UOM",null,"Durability","Supplier durability",null,"Wharehouse durability",null,"Store durability",null,"Customer durability",null,"Optimization unit"]
[]
["Number of sales units per Carton",null,null,"Number of cartons per outer carton",null,null,"Number of cartons per layer",null,null,"No. of cartons/pallet",null,"Order unit/EAN"]
[]
["Temperature requirements",null,null,"Min. Order",null,"Extract","AU-Price",null,"AU-Price dates from",null,"AU-Price dates to",null,"Order unit"]
[null,null,null,null,null," "]
["Minimum stock",null,"ISBN",null,null,"AH (Base)","WEEE product weight",null,null,"WEEE Batteries weight and type"]
[]
[]
[]
["Multiple articles"]
["Fill in one product registration and provide data pr. article below, provided product registration details apply"]
["DS article number"]
[]
["Vendor article number",null,null,null,null,null,null,null,null,null,null,"Release data"]
[]
["Article description (english, max 40 characters)",null,null,null,null,null,null,null,null,null,null,"No. Cha.",{"$f":"LEN(A512)","v":0}]
[]
[]
["Article description (danish, max 40 characters)",null,null,null,null,null,null,null,null,null,null,"No. Cha.",{"$f":"LEN(A515)","v":0}]
[]
[]
["Order data"]
[null,null,null,"føtex","Føtex food","Bilka","Bilka.dk","Netto","Døgn Netto","Salling"]
["Buying price per unit"]
["Sales data"]
[null,null,null,"føtex","Føtex food","Bilka","Bilka.dk","Netto","Døgn Netto","Salling"]
["Rec. sales price"]
["Sales price"]
["Bonus buy price"]
["DC mark up"]
["DC in price (co-ex)"]
["Logistics data"]
["Dimensions ",null,"Sales unit",null,null,null,"Carton",null,"Outer carton",null,"Pallet",null,"Pallet type"]
["EAN",null,null,null,"EAN",null,null,null,null,null,null,null,"1,5/1"]
["Gross weight (g)",null,null,null,"Gross weight (g)"]
["Net weight (g)",null,null,null,"Net weight (g)",null,null,null,null,null,null,null,"1/1"]
["Height (mm)",null,null,null,"Shortest (mm)"]
["Width (mm)",null,null,null,"Medium (mm)",null,null,null,null,null,null,null,"1/2"]
["Depth (mm)",null,null,null,"Longest (mm)"]
["Net content",null,null,null,"Net content",null,null,null,null,null,null,null,"1/4"]
["Content Unit",null,null,null,"Content Unit"]
["SU pr. UOM",null,"Durability","Supplier durability",null,"Wharehouse durability",null,"Store durability",null,"Customer durability",null,"Optimization unit"]
[]
["Number of sales units per Carton",null,null,"Number of cartons per outer carton",null,null,"Number of cartons per layer",null,null,"No. of cartons/pallet",null,"Order unit/EAN"]
[]
["Temperature requirements",null,null,"Min. Order",null,"Extract","AU-Price",null,"AU-Price dates from",null,"AU-Price dates to",null,"Order unit"]
[null,null,null,null,null," "]
["Minimum stock",null,"ISBN",null,null,"AH (Base)","WEEE product weight",null,null,"WEEE Batteries weight and type"]
[]
[]
[]
["Multiple articles"]
["Fill in one product registration and provide data pr. article below, provided product registration details apply"]
["DS article number"]
[]
["Vendor article number",null,null,null,null,null,null,null,null,null,null,"Release data"]
[]
["Article description (english, max 40 characters)",null,null,null,null,null,null,null,null,null,null,"No. Cha.",{"$f":"LEN(A554)","v":0}]
[]
[]
["Article description (danish, max 40 characters)",null,null,null,null,null,null,null,null,null,null,"No. Cha.",{"$f":"LEN(A557)","v":0}]
[]
[]
["Order data"]
[null,null,null,"føtex","Føtex food","Bilka","Bilka.dk","Netto","Døgn Netto","Salling"]
["Buying price per unit"]
["Sales data"]
[null,null,null,"føtex","Føtex food","Bilka","Bilka.dk","Netto","Døgn Netto","Salling"]
["Rec. sales price"]
["Sales price"]
["Bonus buy price"]
["DC mark up"]
["DC in price (co-ex)"]
["Logistics data"]
["Dimensions ",null,"Sales unit",null,null,null,"Carton",null,"Outer carton",null,"Pallet",null,"Pallet type"]
["EAN",null,null,null,"EAN",null,null,null,null,null,null,null,"1,5/1"]
["Gross weight (g)",null,null,null,"Gross weight (g)"]
["Net weight (g)",null,null,null,"Net weight (g)",null,null,null,null,null,null,null,"1/1"]
["Height (mm)",null,null,null,"Shortest (mm)"]
["Width (mm)",null,null,null,"Medium (mm)",null,null,null,null,null,null,null,"1/2"]
["Depth (mm)",null,null,null,"Longest (mm)"]
["Net content",null,null,null,"Net content",null,null,null,null,null,null,null,"1/4"]
["Content Unit",null,null,null,"Content Unit"]
["SU pr. UOM",null,"Durability","Supplier durability",null,"Wharehouse durability",null,"Store durability",null,"Customer durability",null,"Optimization unit"]
[]
["Number of sales units per Carton",null,null,"Number of cartons per outer carton",null,null,"Number of cartons per layer",null,null,"No. of cartons/pallet",null,"Order unit/EAN"]
[]
["Temperature requirements",null,null,"Min. Order",null,"Extract","AU-Price",null,"AU-Price dates from",null,"AU-Price dates to",null,"Order unit"]
[null,null,null,null,null," "]
["Minimum stock",null,"ISBN",null,null,"AH (Base)","WEEE product weight",null,null,"WEEE Batteries weight and type"]
[]
[]
[]
["Multiple articles"]
["Fill in one product registration and provide data pr. article below, provided product registration details apply"]
["DS article number"]
[]
["Vendor article number",null,null,null,null,null,null,null,null,null,null,"Release data"]
[]
["Article description (english, max 40 characters)",null,null,null,null,null,null,null,null,null,null,"No. Cha.",{"$f":"LEN(A596)","v":0}]
[]
[]
["Article description (danish, max 40 characters)",null,null,null,null,null,null,null,null,null,null,"No. Cha.",{"$f":"LEN(A599)","v":0}]
[]
[]
["Order data"]
[null,null,null,"føtex","Føtex food","Bilka","Bilka.dk","Netto","Døgn Netto","Salling"]
["Buying price per unit"]
["Sales data"]
[null,null,null,"føtex","Føtex food","Bilka","Bilka.dk","Netto","Døgn Netto","Salling"]
["Rec. sales price"]
["Sales price"]
["Bonus buy price"]
["DC mark up"]
["DC in price (co-ex)"]
["Logistics data"]
["Dimensions ",null,"Sales unit",null,null,null,"Carton",null,"Outer carton",null,"Pallet",null,"Pallet type"]
["EAN",null,null,null,"EAN",null,null,null,null,null,null,null,"1,5/1"]
["Gross weight (g)",null,null,null,"Gross weight (g)"]
["Net weight (g)",null,null,null,"Net weight (g)",null,null,null,null,null,null,null,"1/1"]
["Height (mm)",null,null,null,"Shortest (mm)"]
["Width (mm)",null,null,null,"Medium (mm)",null,null,null,null,null,null,null,"1/2"]
["Depth (mm)",null,null,null,"Longest (mm)"]
["Net content",null,null,null,"Net content",null,null,null,null,null,null,null,"1/4"]
["Content Unit",null,null,null,"Content Unit"]
["SU pr. UOM",null,"Durability","Supplier durability",null,"Wharehouse durability",null,"Store durability",null,"Customer durability",null,"Optimization unit"]
[]
["Number of sales units per Carton",null,null,"Number of cartons per outer carton",null,null,"Number of cartons per layer",null,null,"No. of cartons/pallet",null,"Order unit/EAN"]
[]
["Temperature requirements",null,null,"Min. Order",null,"Extract","AU-Price",null,"AU-Price dates from",null,"AU-Price dates to",null,"Order unit"]
[null,null,null,null,null," "]
["Minimum stock",null,"ISBN",null,null,"AH (Base)","WEEE product weight",null,null,"WEEE Batteries weight and type"]

{"sheet":"Bilka.dk content","index":7,"n_rows":14,"n_cols":16,"rows_kept":14,"cut":false,"hidden":false,"merged":[]}
["SAP"]
["Article description","Delievery by crane (x)","Dangerous goods (x)","Fragile","Can be returned","Insurance required","Secure","Liquid (x)","DR License (x)"]
[]
[]
[]
[]
[]
[]
[]
[]
["Hybris"]
["Varenr.","HY1","Variant (Ja/Nej)","Overskrift","Synlighed:                  1: Avisoprettelse      2: Produktoprettelse","Lager:                   1: Aarslev               2: Skejby               3: DSV","Brødtekst","Atributter (Afdeling)","Atributter (Gruppe)","Atributter (Varetype)","Billede","Video                                       1: Gem video på K-drevet                          2: Indsæt link","Tilbehør","Gruppe til hjemmeside","Fiktivt lager (kun ved integrationer)","Links, Anmeldelse"]
[]
[null,null,""]

{"sheet":"Measurements","index":8,"n_rows":25,"n_cols":8,"rows_kept":25,"cut":false,"hidden":false,"merged":[[24,0,24,11]]}
[]
["Dimensions of a sales unit",null,null,null,null,null,null,"Dimensions of a distribution/inventory unit"]
[]
[]
[]
[]
[]
[]
[]
[]
[]
[]
[]
[]
[]
[]
[]
[]
[]
[]
[]
[]
[]
[]
["Definition of sales units, cartons and outer cartons"]

{"sheet":"SAP","index":9,"n_rows":156,"n_cols":9,"rows_kept":156,"cut":false,"hidden":false,"merged":[[66,0,66,1],[67,0,67,1],[156,0,156,2],[156,3,156,5],[154,0,154,5],[155,0,155,2],[155,3,155,5],[152,3,152,5],[153,3,153,5],[117,4,117,5],[118,0,118,5],[119,0,119,1],[119,2,119,3],[136,3,136,5],[133,0,133,2],[133,3,133,5],[121,0,121,5],[123,0,123,2],[123,3,123,5],[125,0,125,5],[126,0,126,5],[128,0,128,2],[128,3,128,5],[129,0,129,5],[56,0,56,1],[56,2,56,3],[56,4,56,5],[57,0,57,1],[57,2,57,3],[57,4,57,5],[138,0,138,5],[139,0,139,5],[130,0,130,2],[127,0,127,2],[127,3,127,5],[131,0,131,2],[131,3,131,4],[132,0,132,2],[132,3,132,5],[120,0,120,1],[120,2,120,3],[134,0,134,5],[135,0,135,2],[135,3,135,5],[136,0,136,2],[65,0,65,5],[117,0,117,1],[117,2,117,3],[122,3,122,5],[109,0,109,5],[110,0,110,2],[111,0,111,2],[111,4,111,5],[115,0,115,5],[112,0,112,2],[112,4,112,5],[114,0,114,5],[116,0,116,1],[116,2,116,3],[116,4,116,5],[119,4,119,5],[120,4,120,5],[122,0,122,2],[94,0,94,2],[94,3,94,5],[95,0,95,5],[96,0,96,2],[97,0,97,2],[91,0,91,2],[91,3,91,5],[92,0,92,2],[92,3,92,5],[93,0,93,2],[93,3,93,5],[83,4,83,5],[82,4,82,5],[88,0,88,2],[88,3,88,5],[89,0,89,2],[89,3,89,5],[90,0,90,2],[90,3,90,5],[85,0,85,5],[86,0,86,5],[87,0,87,2],[87,3,87,5],[83,1,83,2],[82,1,82,2],[74,0,74,5],[79,0,79,5],[69,0,69,5],[70,0,70,5],[71,0,71,1],[71,4,71,5],[72,0,72,1],[72,4,72,5],[73,0,73,5],[71,2,71,3],[72,2,72,3],[76,0,76,2],[75,0,75,2],[76,3,76,4],[75,3,75,4],[62,0,62,5],[63,0,63,1],[63,2,63,3],[63,4,63,5],[64,0,64,1],[64,2,64,3],[64,4,64,5],[53,0,53,1],[53,2,53,3],[53,4,53,5],[54,0,54,1],[54,2,54,3],[54,4,54,5],[55,0,55,5],[58,0,58,1],[58,2,58,3],[58,4,58,5],[59,0,59,1],[59,2,59,3],[59,4,59,5],[60,0,60,1],[60,2,60,3],[60,4,60,5],[61,0,61,1],[50,0,50,2],[51,0,51,1],[51,2,51,3],[51,4,51,5],[52,0,52,1],[52,2,52,3],[52,4,52,5],[47,0,47,1],[47,2,47,3],[47,4,47,5],[48,0,48,5],[49,0,49,2],[50,3,50,4],[49,3,49,4],[44,0,44,1],[44,2,44,3],[44,4,44,5],[45,0,45,5],[46,0,46,1],[46,2,46,3],[46,4,46,5],[41,0,41,3],[41,4,41,5],[42,0,42,5],[43,0,43,1],[43,2,43,3],[43,4,43,5],[39,0,39,5],[40,0,40,3],[40,4,40,5],[34,4,34,5],[34,2,34,3],[34,0,34,1],[37,2,37,3],[37,0,37,1],[35,4,35,5],[38,4,38,5],[37,4,37,5],[36,0,36,1],[36,2,36,3],[35,0,35,1],[35,2,35,3],[38,2,38,3],[38,0,38,1],[36,4,36,5],[24,2,24,3],[25,0,25,1],[28,4,28,5],[26,4,26,5],[26,2,26,3],[26,0,26,1],[29,4,29,5],[29,2,29,3],[29,0,29,1],[27,4,27,5],[12,0,12,5],[13,0,13,5],[14,0,14,5],[3,0,3,2],[3,3,3,5],[4,0,4,2],[4,3,4,5],[5,0,5,2],[5,3,5,5],[9,4,9,5],[10,4,10,5],[8,0,8,1],[0,0,0,5],[0,6,0,7],[1,0,1,5],[1,6,1,7],[2,0,2,2],[2,3,2,5],[2,6,2,7],[6,0,6,5],[7,0,7,1],[19,0,19,1],[21,0,21,1],[19,4,19,5],[15,0,15,5],[16,0,16,5],[17,0,17,5],[18,0,18,5],[27,0,27,1],[23,4,23,5],[20,4,20,5],[22,4,22,5],[23,2,23,3],[21,2,21,3],[21,4,21,5],[19,2,19,3],[20,0,20,1],[22,0,22,1],[23,0,23,1],[20,2,20,3],[22,2,22,3],[24,4,24,5],[24,0,24,1],[27,2,27,3],[25,2,25,3],[151,3,151,5],[147,0,147,2],[147,3,147,5],[148,3,148,5],[96,3,96,5],[98,0,98,2],[97,3,97,5],[99,0,99,2],[140,0,140,5],[101,3,101,5],[103,0,103,2],[105,0,105,5],[106,0,106,5],[107,0,107,1],[107,2,107,3],[107,4,107,5],[108,0,108,1],[108,2,108,3],[145,0,145,5],[146,0,146,2],[146,3,146,5],[98,3,98,5],[100,0,100,2],[99,3,99,5],[108,4,108,5],[101,0,101,2],[130,3,130,4],[61,2,61,3],[61,4,61,5],[25,4,25,5],[149,3,149,5],[150,3,150,5],[100,3,100,5],[102,0,102,2],[28,0,28,1],[33,4,33,5],[33,2,33,3],[33,0,33,1],[31,2,31,3],[28,2,28,3],[32,4,32,5],[32,2,32,3],[32,0,32,1],[30,2,30,3],[30,0,30,1],[31,0,31,1],[31,4,31,5],[30,4,30,5]]}
["Initial Screen",null,null,null,null,null,"DS Article Number",null,1]
["Article",null,null,null,null,null,null,null,4]
["EAN EA",null,null,"Article Type",null,null,"Check of data"]
[null,null,null,null,null,null,"Missing Data","EAN-Code"]
["Merchandise Category",null,null,"Article Category"]
[]
["Areas of validity"]
["Vendor",null,"VSR","Føtex","Føtex food","Bilka"]
[]
["Bilka.dk","Netto","Døgn Netto","Salling","Purchasing organization"]
[]
[]
["Basic Data"]
["Description"]
["Article description EN"]
[]
["Article description DA"]
[]
["Units of measure/GTINs/dimensions"]
["Order unit/EAN",null,"Order Unit",null,"PLU"]
[]
["Re-pack needed",null,"SU",null,"Cartons per outer carton"]
[]
["EAN EA",null,"Gross w./ sales unit in kg.",null,"Net-Weight in kg."]
[]
["Length sales unit",null,"Width sales unit",null,"Heigth  sales unit"]
[]
["Units per carton",null,"EAN carton",null,"Gross w./ carton in kg."]
[]
["Shortest Carton",null,"2nd Longest Carton",null,"Longest Carton"]
[]
["EAN outer carton",null,"Gross w./ Outer carton in kg.",null,"Pallet type"]
[]
["Shortest outer carton",null,"2nd Longest outer carton",null,"Longest outer carton"]
[]
["Units per layer",null,"Units per pallet",null,"Shortest pallet"]
[]
["2nd Longest pallet",null,"Longest pallet",null,"Gross w./ Pallet in kg."]
[]
["Assignment to article hierachy"]
["Article hierarchy/Hierarchy Node"]
[]
["General data"]
["Country of Origin",null,"Commodity code"]
[]
["Tax data"]
["VAT"]
[]
["DS Retail"]
["Drained weight/Net content",null,null,"Content unit",null,"Alt. UOM"]
[]
["Durability",null,"Supplier Dur.",null,"Whse. Dur"]
[]
["Store Durability",null,"Customer Durability",null,"Attributes"]
[]
["DS Retail E-commerce data"]
["CMS Handle",null,"DGIndProfile",null,"POD Required"]
[]
["Fragile",null,"Can be Returned",null,"Insurance Required"]
[]
["Secure",null,"In bulk//liqiud"]
[]
["Fashion Attributes"]
["Brand",null,"Private label",null,"License name"]
[]
["Components"]
["Deposit type"]
[]
[]
["Purchasing"]
["General data for each vendor"]
["Vendors article num."]
[]
["Data for each vendor"]
["Planned delivery time in days"]
["Planned delivery time in days",null,null,"Price unit",null,"Føtex - Cur"]
[]
["Føtex","Føtex food","Bilka","Bilka.dk","Netto","Døgn Netto"]
[]
["Buying price "]
["Føtex","Føtex food","Bilka","Bilka.dk","Netto","Døgn Netto"]
[]
["Salling","Conditions",null,"DC (diff.)","DC for price condition Netto",null,"HUSK!"]
[null,null,null,null,null,null,"Import varer --> Inforecord --> Procedure = 4.000.000"]
[]
["Sales"]
["Calculated price"]
["Føtex",null,null,"Føtex food"]
[]
["Bilka",null,null,"Bilka.dk"]
[]
["Netto",null,null,"Døgn Netto"]
[]
["Salling",null,null,"Valid from "]
[]
["DS Retail / Salesdata"]
["Føtex",null,null,"Føtex food"]
[]
["Bilka",null,null,"Bilka.dk"]
[]
["Netto",null,null,"Døgn Netto"]
[]
["Salling"]
[]
[]
["Logistics: DC"]
["Stock planner/Replenishment Data"]
["RP Type",null,"Delivery Cycle",null,"Consign. Control"]
["Z0: No Planning"]
["General Control Parameters"]
["Distribution Profile"]
["Flow Through"]
[]
[]
["Logistics: Store"]
["RP Parameters"]
["RP Type"]
["ZZ: No Planning; Not F&R Relevant"]
["Stock Planner/Replenishment Data"]
["Supply source",null,"Consign. Control"]
[]
["DS Retail"]
["Store ordering"]
[]
[]
["POS"]
["POS control for each distribution chain/site"]
["No repeat key"]
[]
["DS Retail: Addtl. POS"]
["Sales Rules",null,null,"Black Hawk",null,"Goyada"]
[]
["Empl. Rebate",null,null,"Multi Buy Code"]
[]
["POS selling period/status"]
["For sale from",null,null,"Release date"]
[]
[]
["Listing"]
["Listing: Store"]
["F&R on promotion (Spot)"]
["Føtex","Føtex food","Bilka","Bilka.dk","Netto","Døgn Netto"]
[]
["Salling"]
[]
["Listing procedures"]
["Rule Based",null,null,"Layout module"]
[]
[]
[]
[]
[]
[]
[]
["Listing: DC"]
["Listed from"]

{"sheet":"Ordreskema dansk leverandør","index":10,"n_rows":3,"n_cols":7,"rows_kept":3,"cut":false,"hidden":false,"merged":[[0,0,0,5],[1,2,1,5],[1,6,2,6]]}
["Ordreskema til CL  - Dansk leverandør",null,null,null,null,null,"Voluntary"]
["Vendor",null,null,null,null,null,"Gross Price (EA) - (If different from normal)"]
["Article","Units per carton","PO Quantity (Units)","Delivery Date","Site","Comments"]

{"sheet":"Ordreskema udenlansk leverandør","index":11,"n_rows":17,"n_cols":12,"rows_kept":17,"cut":false,"hidden":false,"merged":[[2,1,2,2],[3,1,3,2],[0,0,0,7],[13,1,13,2],[15,5,15,7],[4,0,4,2],[1,0,1,2],[1,3,1,4],[33,3,33,4],[7,0,7,2],[8,1,10,2],[12,1,12,2],[9,5,9,7],[11,5,11,7],[10,5,10,7],[12,5,12,7],[13,5,14,7]]}
["Ordre skema CL - Udenlandsk leverandør"]
["Delivery/Invoice",null,null,"Confirmation/Foreign trade",null,null,null,null,null,null,"=","Påkrævet"]
["Peyment terms",null,null,null,"Date"]
["Incoterms terms",null,null,"Ship. Date"]
["Conditions",null,null,"Shipping point"]
[null,"Amount","Currency","Forwarding agent"]
["Freight"]
["Text",null,null,"Request for L/C"]
["Header text:",null,null,"Order confirmation"]
[null,null,null,"Counter sample",null,"Comment Size set"]
[null,null,null,"Size set"]
[null,null,null,"Color sample",null,"Comment Photo sample"]
["Containersørrelse",null,null,"Photo sample"]
["Told %",null,null,"Shipment sample"]
[]
["Vendor",null,null,null,null,"Voulentary"]
["Article","Units per carton","PO Quantity (Units)","Delivery Date","Site","Net price","Kommentar","Promotion"]

{"sheet":"Allocation","index":12,"n_rows":3,"n_cols":22,"rows_kept":3,"cut":false,"hidden":false,"merged":[[0,0,2,0],[0,1,0,6],[0,7,0,16],[0,17,0,20],[0,21,2,21],[1,1,1,2],[1,3,1,4],[1,5,1,6],[1,7,1,8],[1,9,1,10],[1,11,1,12],[1,13,1,14],[1,15,1,16],[1,17,1,18],[1,19,1,20]]}
["Varenummer","Bilka",null,null,null,null,null,"føtex",null,null,null,null,null,null,null,null,null,"føtex food",null,null,null,"Bemærkninger"]
[null,"LM str. L",null,"LM str. M",null,"LM str. S",null,"LM str. XL",null,"LM str. L",null,"LM str. M",null,"LM str. S",null,"LM str. XS",null,"LM str. M",null,"LM str. S"]
[null,"LM","Antal kolli","LM","Antal kolli","LM","Antal kolli","LM","Antal kolli","LM","Antal kolli","LM","Antal kolli","LM","Antal kolli","LM","Antal kolli","LM","Antal kolli","LM","Antal kolli"]

{"sheet":"MC","index":13,"n_rows":16,"n_cols":103,"rows_kept":16,"cut":false,"hidden":false,"merged":[]}
["Merchandize category","10001 CHEESE","10002 COLD MEAT","10003 DAIRIES","10004 EGGS","10005 FATS","10006 FISH","10007 FROZEN","10010 POULTRY","10011 PRE-PACKED MEAT","10012 SALADS/FASTFOOD/SAUSAGES","10030 ALCOHOLIC BEVERAGE","10031 NON-ALCO. BEVERAGE","10032 BREAD & COOKIES","10033 COFFEE & TEA","10034 CONFECTIONARY","10035 DRY GROCERIES","10036 FRUIT & VEGETABLES","10037 PETFOOD","10038 PRESERVED FOOD","10039 WINE","10040 SPIRITS","10041 TOBAACO & CIGARETTES","10060 BAKERY","10061 BISTRO","10062 DELICACIES","10063 MEAT","10064 QUICK FOOD","10066 STARBUCKS","10067 CARL'S JR.","20001 CHEMIST","20002 CLEANING","20003 DETERGENTS","20004 HOUSEHOLD DISPOSABLE","20020 BATTERIES","20021 COMMUNICATION","20022 COMPUTER","20023 DIGITAL MEDIA","20024 ELECTRONIC GAMES","20025 PHOTO","20026 PICTURE","20027 SMALL APLLIANCES","20028 SOUND","20029 WATCHES","20040 BEDS","20041 HEAVY FURNI & CARPE","20042 LIGHT FURNITURE","20043 LIGHTING","20044 SUNSH., MIRRORS & GAL.","20060 GARDEN ACCESSORIES","20061 GARDEN FURNITURE","20062 GREENHOUSES & GARDEN","20063 OUTDOOR PLANTS","20064 POTTERY FOR HOUSE","20065 SEEDS, FLOWERBULBS","20100 BATHROOM & SANITARY","20101 BUILDING MATERIALS","20102 HOME TEXTILES","20103 INDOOR PLANTS AND FL.","20104 INTERIOR","20105 PAINT & WALL COATING","20106 TOOLS & ACCESSORIES","20120 BOOKS","20121 CANDLES","20122 STAMPS, LOTTERY, TIC.","20123 FEASTS & OCCASIONS","20124 GIFT ARTICLES","20125 HEALTH","20126 HOBBY","20127 HOUSEHOLD HARDWARE","20128 NAPKINS","20129 OPTICS","20130 OTC","20131 PAPERS/MAGAZINES","20132 SEASON","20133 STATIONARY","20134 TOYS","20135 DISPOSABLES","20136 HOUSHOLD ELECTRONICS","20150 AUTO","20151 PRAMS AND STROLLERS","20152 SECURITY","20170 DIAPERS","20171 HAIR PRODUCTS","20172 INTIME HYGIENE","20173 ORAL","20174 PERFUME AND DEODORAN","20175 SKIN AND COSMETICS P","20176 TOILET PAPER","20177 COTTON & PAPER","20178 ACCESSORIES PERFUME","20200 BIKES","20201 SPORT EQUIPMENT","20202 WELLNESS & EXERCISE","20250 MEN TEXTILE","20251 WOMEN TEXTILE","20252 CHILDREN TEXTILE","20253 NEW BORN TEXTILE","20254 SPORT TEXTILE","20255 SHOES","20256 ACCESSORIES TEXTILE","20260 LOYALTY PROGRAMS","30001 ADMINISTRATIVE"]
["Attributter","BRAND","BRAND","BRAND","BRAND","BRAND","BRAND","BRAND","BRAND","BRAND","BRAND","BRAND","BRAND","BRAND","BRAND","BRAND","BRAND","BRAND","BRAND","BRAND","BRAND","BRAND","BRAND","BRAND","BRAND","BRAND","BRAND","BRAND","BRAND",null,"BRAND","BRAND","BRAND","BRAND","BRAND","BRAND","BRAND","BRAND","BRAND","BRAND","BRAND","BRAND","BRAND","BRAND","BRAND","BRAND","BRAND","BRAND","BRAND","BRAND","BRAND","BRAND","BRAND","BRAND","BRAND","BRAND","BRAND","BRAND","BRAND","BRAND","BRAND","BRAND","BRAND","BRAND","BRAND","BRAND","BRAND","BRAND","BRAND","BRAND","BRAND","BRAND","BRAND","BRAND","BRAND","BRAND","BRAND","BRAND","BRAND","BRAND","BRAND","BRAND","BRAND","BRAND","BRAND","BRAND","BRAND","BRAND","BRAND","BRAND","BRAND","BRAND","BRAND","BRAND","BRAND","BRAND","BRAND","BRAND","BRAND","BRAND","BRAND","BRAND","BRAND"]
[null,"COUNTRY OF ORIGIN","COUNTRY OF ORIGIN","COUNTRY OF ORIGIN","COUNTRY OF ORIGIN","COUNTRY OF ORIGIN","COUNTRY OF ORIGIN","COUNTRY OF ORIGIN","COUNTRY OF ORIGIN","COUNTRY OF ORIGIN","COUNTRY OF ORIGIN","COUNTRY OF ORIGIN","COUNTRY OF ORIGIN","COUNTRY OF ORIGIN","COUNTRY OF ORIGIN","COUNTRY OF ORIGIN","COUNTRY OF ORIGIN","COUNTRY OF ORIGIN","COUNTRY OF ORIGIN","COUNTRY OF ORIGIN","COUNTRY OF ORIGIN","COUNTRY OF ORIGIN","COUNTRY OF ORIGIN","COUNTRY OF ORIGIN","COUNTRY OF ORIGIN","COUNTRY OF ORIGIN","COUNTRY OF ORIGIN","COUNTRY OF ORIGIN","COUNTRY OF ORIGIN",null,"COUNTRY OF ORIGIN","COUNTRY OF ORIGIN","COUNTRY OF ORIGIN","COUNTRY OF ORIGIN","COUNTRY_OF_ORIGIN","COUNTRY_OF_ORIGIN","COUNTRY_OF_ORIGIN","COUNTRY_OF_ORIGIN","COUNTRY_OF_ORIGIN","COUNTRY_OF_ORIGIN","COUNTRY_OF_ORIGIN","COUNTRY OF ORIGIN","COUNTRY_OF_ORIGIN","COUNTRY OF ORIGIN","COUNTRY_OF_ORIGIN","COUNTRY_OF_ORIGIN","COUNTRY_OF_ORIGIN","COUNTRY_OF_ORIGIN","COUNTRY_OF_ORIGIN","COUNTRY_OF_ORIGIN","COUNTRY_OF_ORIGIN","COUNTRY OF ORIGIN","COUNTRY_OF_ORIGIN","COUNTRY OF ORIGIN","COUNTRY OF ORIGIN","COUNTRY OF ORIGIN","COUNTRY_OF_ORIGIN","COUNTRY_OF_ORIGIN","COUNTRY OF ORIGIN","COUNTRY_OF_ORIGIN","COUNTRY OF ORIGIN","COUNTRY OF ORIGIN","COUNTRY OF ORIGIN","COUNTRY OF ORIGIN","COUNTRY OF ORIGIN","COUNTRY OF ORIGIN","COUNTRY OF ORIGIN","COUNTRY OF ORIGIN","COUNTRY OF ORIGIN","COUNTRY_OF_ORIGIN","COUNTRY OF ORIGIN","COUNTRY OF ORIGIN","COUNTRY OF ORIGIN","COUNTRY OF ORIGIN","COUNTRY_OF_ORIGIN","COUNTRY OF ORIGIN","COUNTRY_OF_ORIGIN","COUNTRY OF ORIGIN","COUNTRY_OF_ORIGIN","COUNTRY OF ORIGIN","COUNTRY OF ORIGIN","COUNTRY OF ORIGIN","COUNTRY OF ORIGIN","COUNTRY OF ORIGIN","COUNTRY OF ORIGIN","COUNTRY OF ORIGIN","COUNTRY OF ORIGIN","COUNTRY OF ORIGIN","COUNTRY OF ORIGIN","COUNTRY OF ORIGIN","COUNTRY OF ORIGIN","COUNTRY OF ORIGIN","COUNTRY OF ORIGIN","COUNTRY OF ORIGIN","COUNTRY OF ORIGIN","COUNTRY OF ORIGIN","COUNTRY OF ORIGIN","COUNTRY OF ORIGIN","COUNTRY OF ORIGIN","COUNTRY OF ORIGIN","COUNTRY OF ORIGIN","COUNTRY_OF_ORIGIN","COUNTRY_OF_ORIGIN"]
[null,"CSR BRANDS","CSR BRANDS","CSR BRANDS","CSR BRANDS","CSR BRANDS","CSR BRANDS","CSR BRANDS","CSR BRANDS","CSR BRANDS","CSR BRANDS","CSR BRANDS","CSR BRANDS","CSR BRANDS","CSR BRANDS","CSR BRANDS","CSR BRANDS","CSR BRANDS","CSR BRANDS","CSR BRANDS","CSR BRANDS","CSR BRANDS","CSR BRANDS","CSR BRANDS","CSR BRANDS","CSR BRANDS","CSR BRANDS","CSR BRANDS","CSR BRANDS",null,"CSR BRANDS","CSR BRANDS","CSR BRANDS","CSR BRANDS","CSR BRANDS BRANDS","CSR BRANDS BRANDS","CSR BRANDS BRANDS","CSR BRANDS BRANDS","CSR BRANDS BRANDS","CSR BRANDS BRANDS","CSR BRANDS BRANDS","CSR BRANDS","CSR BRANDS BRANDS","CSR BRANDS","CSR BRANDS BRANDS","CSR BRANDS BRANDS","CSR BRANDS BRANDS","CSR BRANDS BRANDS","CSR BRANDS BRANDS","CSR BRANDS BRANDS","CSR BRANDS BRANDS","CSR BRANDS","CSR BRANDS BRANDS","CSR BRANDS","CSR BRANDS","CSR BRANDS","CSR BRANDS BRANDS","CSR BRANDS BRANDS","CSR BRANDS","CSR BRANDS BRANDS","CSR BRANDS","CSR BRANDS","CSR BRANDS","CSR BRANDS","CSR BRANDS","CSR BRANDS","CSR BRANDS","CSR BRANDS","CSR BRANDS","CSR BRANDS BRANDS","CSR BRANDS","CSR BRANDS","CSR BRANDS","CSR BRANDS","CSR BRANDS BRANDS","CSR BRANDS","CSR BRANDS BRANDS","CSR BRANDS","CSR BRANDS BRANDS","CSR BRANDS","CSR BRANDS","CSR BRANDS","CSR BRANDS","CSR BRANDS","CSR BRANDS","CSR BRANDS","CSR BRANDS","CSR BRANDS","CSR BRANDS","CSR BRANDS","CSR BRANDS","CSR BRANDS","CSR BRANDS","CSR BRANDS","CSR BRANDS","CSR BRANDS","CSR BRANDS","CSR BRANDS","CSR BRANDS","CSR BRANDS","CSR BRANDS","CSR BRANDS BRANDS","CSR BRANDS"]
[null,"ENVIRONMENTAL LABELS","ENVIRONMENTAL LABELS","ENVIRONMENTAL LABELS","ENVIRONMENTAL LABELS","ENVIRONMENTAL LABELS","ENVIRONMENTAL LABELS","ENVIRONMENTAL LABELS","ENVIRONMENTAL LABELS","ENVIRONMENTAL LABELS","ENVIRONMENTAL LABELS","ENVIRONMENTAL LABELS","ENVIRONMENTAL LABELS","ENVIRONMENTAL LABELS","ENVIRONMENTAL LABELS","ENVIRONMENTAL LABELS","ENVIRONMENTAL LABELS","ENVIRONMENTAL LABELS","ENVIRONMENTAL LABELS","ENVIRONMENTAL LABELS","ENVIRONMENTAL LABELS","ENVIRONMENTAL LABELS","ENVIRONMENTAL LABELS","ENVIRONMENTAL LABELS","ENVIRONMENTAL LABELS","ENVIRONMENTAL LABELS","ENVIRONMENTAL LABELS","ENVIRONMENTAL LABELS","ENVIRONMENTAL LABELS",null,"ENVIRONMENTAL LABELS","ENVIRONMENTAL LABELS","ENVIRONMENTAL LABELS","ENVIRONMENTAL LABELS","ENVIRONMENTAL LABELS ","ENVIRONMENTAL LABELS ","ENVIRONMENTAL LABELS ","ENVIRONMENTAL LABELS ","ENVIRONMENTAL LABELS ","ENVIRONMENTAL LABELS ","ENVIRONMENTAL LABELS ","ENVIRONMENTAL LABELS","ENVIRONMENTAL LABELS ","ENVIRONMENTAL LABELS","ENVIRONMENTAL LABELS ","ENVIRONMENTAL LABELS ","ENVIRONMENTAL LABELS ","ENVIRONMENTAL LABELS ","ENVIRONMENTAL LABELS ","ENVIRONMENTAL LABELS ","ENVIRONMENTAL LABELS ","ENVIRONMENTAL LABELS","ENVIRONMENTAL LABELS ","ENVIRONMENTAL LABELS","ENVIRONMENTAL LABELS","ENVIRONMENTAL LABELS","ENVIRONMENTAL LABELS ","ENVIRONMENTAL LABELS ","ENVIRONMENTAL LABELS","ENVIRONMENTAL LABELS ","ENVIRONMENTAL LABELS","ENVIRONMENTAL LABELS","ENVIRONMENTAL LABELS","ENVIRONMENTAL LABELS","ENVIRONMENTAL LABELS","ENVIRONMENTAL LABELS","ENVIRONMENTAL LABELS","ENVIRONMENTAL LABELS","ENVIRONMENTAL LABELS","ENVIRONMENTAL LABELS ","ENVIRONMENTAL LABELS","ENVIRONMENTAL LABELS","ENVIRONMENTAL LABELS","ENVIRONMENTAL LABELS","ENVIRONMENTAL LABELS ","ENVIRONMENTAL LABELS","ENVIRONMENTAL LABELS ","ENVIRONMENTAL LABELS","ENVIRONMENTAL LABELS ","ENVIRONMENTAL LABELS","ENVIRONMENTAL LABELS","ENVIRONMENTAL LABELS","ENVIRONMENTAL LABELS","ENVIRONMENTAL LABELS","ENVIRONMENTAL LABELS","ENVIRONMENTAL LABELS","ENVIRONMENTAL LABELS","ENVIRONMENTAL LABELS","ENVIRONMENTAL LABELS","ENVIRONMENTAL LABELS","ENVIRONMENTAL LABELS","ENVIRONMENTAL LABELS","ENVIRONMENTAL LABELS","ENVIRONMENTAL LABELS","ENVIRONMENTAL LABELS","ENVIRONMENTAL LABELS","ENVIRONMENTAL LABELS","ENVIRONMENTAL LABELS","ENVIRONMENTAL LABELS","ENVIRONMENTAL LABELS","ENVIRONMENTAL LABELS","ENVIRONMENTAL LABELS ","ENVIRONMENTAL LABELS "]
[null,"GOOD, BETTER, BEST","GOOD, BETTER, BEST","GOOD, BETTER, BEST","GOOD, BETTER, BEST","GOOD, BETTER, BEST","GOOD, BETTER, BEST","GOOD, BETTER, BEST","GOOD, BETTER, BEST","GOOD, BETTER, BEST","GOOD, BETTER, BEST","GOOD, BETTER, BEST","GOOD, BETTER, BEST","GOOD, BETTER, BEST","GOOD, BETTER, BEST","GOOD, BETTER, BEST","GOOD, BETTER, BEST","GOOD, BETTER, BEST","GOOD, BETTER, BEST","GOOD, BETTER, BEST","GOOD, BETTER, BEST","GOOD, BETTER, BEST","GOOD, BETTER, BEST","GOOD, BETTER, BEST","GOOD, BETTER, BEST","GOOD, BETTER, BEST","GOOD, BETTER, BEST","GOOD, BETTER, BEST","GOOD, BETTER, BEST",null,"GOOD, BETTER, BEST","GOOD, BETTER, BEST","GOOD, BETTER, BEST","GOOD, BETTER, BEST","GOOD_BETTER_BEST","GOOD_BETTER_BEST","GOOD_BETTER_BEST","GOOD_BETTER_BEST","GOOD_BETTER_BEST","GOOD_BETTER_BEST","GOOD_BETTER_BEST","GOOD, BETTER, BEST","GOOD_BETTER_BEST","GOOD, BETTER, BEST","GOOD_BETTER_BEST","GOOD_BETTER_BEST","GOOD_BETTER_BEST","GOOD_BETTER_BEST","GOOD_BETTER_BEST","GOOD_BETTER_BEST","GOOD_BETTER_BEST","GOOD, BETTER, BEST","GOOD_BETTER_BEST","GOOD, BETTER, BEST","GOOD, BETTER, BEST","GOOD, BETTER, BEST","GOOD_BETTER_BEST","GOOD_BETTER_BEST","GOOD, BETTER, BEST","GOOD_BETTER_BEST","GOOD, BETTER, BEST","GOOD, BETTER, BEST","GOOD, BETTER, BEST","GOOD, BETTER, BEST","GOOD, BETTER, BEST","GOOD, BETTER, BEST","GOOD, BETTER, BEST","GOOD, BETTER, BEST","GOOD, BETTER, BEST","GOOD_BETTER_BEST","GOOD, BETTER, BEST","GOOD, BETTER, BEST","GOOD, BETTER, BEST","GOOD, BETTER, BEST","GOOD_BETTER_BEST","GOOD, BETTER, BEST","GOOD_BETTER_BEST","HEALTH CLAIMS","GOOD_BETTER_BEST","GOOD, BETTER, BEST","GOOD, BETTER, BEST","GOOD, BETTER, BEST","GOOD, BETTER, BEST","GOOD, BETTER, BEST","GOOD, BETTER, BEST","GOOD, BETTER, BEST","GOOD, BETTER, BEST","GOOD, BETTER, BEST","GOOD, BETTER, BEST","GOOD, BETTER, BEST","GOOD, BETTER, BEST","GOOD, BETTER, BEST","GOOD, BETTER, BEST","GOOD, BETTER, BEST","GOOD, BETTER, BEST","GOOD, BETTER, BEST","GOOD, BETTER, BEST","GOOD, BETTER, BEST","GOOD, BETTER, BEST","GOOD, BETTER, BEST","GOOD, BETTER, BEST","GOOD_BETTER_BEST","GOOD_BETTER_BEST"]
[null,"HEALTH CLAIMS","HEALTH CLAIMS","HEALTH CLAIMS","HEALTH CLAIMS","HEALTH CLAIMS","HEALTH CLAIMS","HEALTH CLAIMS","HEALTH CLAIMS","HEALTH CLAIMS","HEALTH CLAIMS","HEALTH CLAIMS","HEALTH CLAIMS","HEALTH CLAIMS","HEALTH CLAIMS","HEALTH CLAIMS","HEALTH CLAIMS","HEALTH CLAIMS","HEALTH CLAIMS","HEALTH CLAIMS","HEALTH CLAIMS","HEALTH CLAIMS","HEALTH CLAIMS","HEALTH CLAIMS","HEALTH CLAIMS","HEALTH CLAIMS","HEALTH CLAIMS","HEALTH CLAIMS","HEALTH CLAIMS",null,"HEALTH CLAIMS","HEALTH CLAIMS","HEALTH CLAIMS","HEALTH CLAIMS","HEALTH CLAIMS","HEALTH CLAIMS","HEALTH CLAIMS","HEALTH CLAIMS","HEALTH CLAIMS","HEALTH CLAIMS","HEALTH CLAIMS","HEALTH CLAIMS","HEALTH CLAIMS","HEALTH CLAIMS","HEALTH CLAIMS","HEALTH CLAIMS","HEALTH CLAIMS","HEALTH CLAIMS","HEALTH CLAIMS","HEALTH CLAIMS","HEALTH CLAIMS","HEALTH CLAIMS","HEALTH CLAIMS","HEALTH CLAIMS","HEALTH CLAIMS","HEALTH CLAIMS","HEALTH CLAIMS","HEALTH CLAIMS","HEALTH CLAIMS","HEALTH CLAIMS","HEALTH CLAIMS","HEALTH CLAIMS","HEALTH CLAIMS","HEALTH CLAIMS","HEALTH CLAIMS","HEALTH CLAIMS","HEALTH CLAIMS","HEALTH CLAIMS","HEALTH CLAIMS","HEALTH CLAIMS","HEALTH CLAIMS","HEALTH CLAIMS","HEALTH CLAIMS","HEALTH CLAIMS","HEALTH CLAIMS","HEALTH CLAIMS","HEALTH CLAIMS","GOOD_BETTER_BEST","HEALTH CLAIMS","HEALTH CLAIMS","HEALTH CLAIMS","HEALTH CLAIMS","HEALTH CLAIMS","HEALTH CLAIMS","HEALTH CLAIMS","HEALTH CLAIMS","HEALTH CLAIMS","HEALTH CLAIMS","HEALTH CLAIMS","HEALTH CLAIMS","HEALTH CLAIMS","HEALTH CLAIMS","HEALTH CLAIMS","HEALTH CLAIMS","HEALTH CLAIMS","HEALTH CLAIMS","HEALTH CLAIMS","HEALTH CLAIMS","HEALTH CLAIMS","HEALTH CLAIMS","HEALTH CLAIMS","HEALTH CLAIMS","HEALTH CLAIMS"]
[null,"ORGANIC ","ORGANIC ","ORGANIC ","ORGANIC ","ORGANIC ","ORGANIC ","ORGANIC","ORGANIC ","ORGANIC ","ORGANIC ","ORGANIC ","ORGANIC","ORGANIC","ORGANIC","ORGANIC","ORGANIC","ORGANIC","ORGANIC ","ORGANIC","ORGANIC ","ORGANIC ","ORGANIC ","ORGANIC ","ORGANIC ","ORGANIC ","ORGANIC ","ORGANIC ","ORGANIC ",null,"ORGANIC ","ORGANIC ","ORGANIC ","ORGANIC ","ORGANIC ","ORGANIC ","ORGANIC ","ORGANIC ","ORGANIC ","ORGANIC ","ORGANIC ","ORGANIC ","ORGANIC ","ORGANIC ","ORGANIC ","ORGANIC ","ORGANIC ","ORGANIC ","ORGANIC ","ORGANIC ","ORGANIC ","ORGANIC ","ORGANIC ","ORGANIC ","ORGANIC ","ORGANIC ","ORGANIC ","ORGANIC ","ORGANIC ","ORGANIC ","ORGANIC ","ORGANIC ","ORGANIC ","ORGANIC ","ORGANIC ","ORGANIC ","ORGANIC ","ORGANIC","ORGANIC","ORGANIC ","ORGANIC ","ORGANIC ","ORGANIC ","ORGANIC ","ORGANIC ","ORGANIC ","ORGANIC ","ORGANIC ","ORGANIC ","ORGANIC ","ORGANIC ","ORGANIC ","ORGANIC ","ORGANIC ","ORGANIC ","ORGANIC ","ORGANIC ","ORGANIC ","ORGANIC ","ORGANIC ","ORGANIC ","ORGANIC ","ORGANIC ","ORGANIC ","ORGANIC ","ORGANIC ","ORGANIC ","ORGANIC ","ORGANIC ","ORGANIC ","ORGANIC ","ORGANIC ","ORGANIC "]
[null,"PRIVATE LABEL","PRIVATE LABEL","PRIVATE LABEL","PRIVATE LABEL","PRIVATE LABEL","PRIVATE LABEL","PRIVATE LABEL","PRIVATE LABEL","PRIVATE LABEL","PRIVATE LABEL","PRIVATE LABEL","PRIVATE LABEL","PRIVATE LABEL","PRIVATE LABEL","PRIVATE LABEL","PRIVATE LABEL","PRIVATE LABEL","PRIVATE LABEL","PRIVATE LABEL","PRIVATE LABEL","PRIVATE LABEL","PRIVATE LABEL","PRIVATE LABEL","PRIVATE LABEL","PRIVATE LABEL","PRIVATE LABEL","PRIVATE LABEL","PRIVATE LABEL",null,"PRIVATE LABEL","PRIVATE LABEL","PRIVATE LABEL","PRIVATE LABEL","PRIVATE LABEL","PRIVATE LABEL","PRIVATE LABEL","PRIVATE LABEL","PRIVATE LABEL","PRIVATE LABEL","PRIVATE LABEL","PRIVATE LABEL","PRIVATE LABEL","PRIVATE LABEL","PRIVATE LABEL","PRIVATE LABEL","PRIVATE LABEL","PRIVATE LABEL","PRIVATE LABEL","PRIVATE LABEL","PRIVATE LABEL","PRIVATE LABEL","PRIVATE LABEL","PRIVATE LABEL","PRIVATE LABEL","PRIVATE LABEL","PRIVATE LABEL","PRIVATE LABEL","PRIVATE LABEL","PRIVATE LABEL","PRIVATE LABEL","PRIVATE LABEL","PRIVATE LABEL","PRIVATE LABEL","PRIVATE LABEL","PRIVATE LABEL","PRIVATE LABEL","PRIVATE LABEL","PRIVATE LABEL","PRIVATE LABEL","PRIVATE LABEL","PRIVATE LABEL","PRIVATE LABEL","PRIVATE LABEL","PRIVATE LABEL","PRIVATE LABEL","PRIVATE LABEL","PRIVATE LABEL","PRIVATE LABEL","PRIVATE LABEL","PRIVATE LABEL","PRIVATE LABEL","PRIVATE LABEL","PRIVATE LABEL","PRIVATE LABEL","PRIVATE LABEL","PRIVATE LABEL","PRIVATE LABEL","PRIVATE LABEL","PRIVATE LABEL","PRIVATE LABEL","PRIVATE LABEL","PRIVATE LABEL","PRIVATE LABEL","PRIVATE LABEL","PRIVATE LABEL","PRIVATE LABEL","PRIVATE LABEL","PRIVATE LABEL","PRIVATE LABEL","PRIVATE LABEL","PRIVATE LABEL","PRIVATE LABEL"]
[null,"SUB BRAND","STYLE","SUB BRAND","SUB BRAND","SUB BRAND","SUB BRAND","SUB BRAND","SUB BRAND","SUB BRAND","SEASONS/ THEMES","SUB BRAND","SUB BRAND","SUB BRAND","SUB BRAND","SUB BRAND","SUB BRAND","SUB BRAND","SUB BRAND","SUB BRAND","SUB BRAND","SUB BRAND","SUB BRAND","SUB BRAND","SEASONS/ THEMES","SUB BRAND","SUB BRAND","SEASONS/ THEMES","SUB BRAND",null,"SUB BRAND","SEASONS/ THEMES","SEASONS/ THEMES","SUB BRAND","SEASONS/THEMES","SEASONS/THEMES","SEASONS/THEMES","SEASONS/THEMES","SEASONS/THEMES","SEASONS/THEMES","SEASONS/THEMES","SUB BRAND","SEASONS/THEMES","SIZE/ MEASUREMENT","SEASONS/THEMES","SEASONS/THEMES","SEASONS/THEMES","SEASONS/THEMES","SEASONS/THEMES","SEASONS/THEMES","SEASONS/THEMES","SEASONS/THEMES","SEASONS/THEMES","SEASONS/THEMES","SEASONS/THEMES","SEASONS/THEMES","SEASONS/THEMES","SEASONS/THEMES","SEASONS/THEMES","SEASONS/THEMES","SEASONS/THEMES","STYLE","SEASONS/ THEMES","SEASONS/ THEMES","SUB BRAND","SEASONS/ THEMES","SEASONS/ THEMES","SEASONS/ THEMES","SEASONS/ THEMES","SEASONS/THEMES","SEASONS/ THEMES","SUB BRAND","SUB BRAND","SUB BRAND","SEASONS/THEMES","SEASONS/ THEMES","SEASONS/THEMES","SEASONS/ THEMES","SEASONS/THEMES","SIZE/ MEASUREMENT","SUB BRAND","SUB BRAND","SUB BRAND","SUB BRAND","SUB BRAND","SUB BRAND","SUB BRAND","SUB BRAND","SUB BRAND","SUB BRAND","SUB BRAND","SIZE/ MEASUREMENT","SIZE/ MEASUREMENT","SIZE/ MEASUREMENT","QUALITY","QUALITY","QUALITY","QUALITY","QUALITY","QUALITY","QUALITY","SUB BRAND","SEASONS/THEMES"]
[null,"TASTE VARIANT","SUB BRAND","SEASONS/ THEMES","PRODUCTION TYPE","PRODUCTION TYPE",null,"PRODUCTION TYPE","SEASONS/ THEMES","PRODUCTION TYPE","SUB BRAND","SIZE/MEASUREMENT","SEASONS/THEMES","SEASONS/THEMES","TASTE VARIANT","SEASONS/THEMES","STYLE","SIZE / MEASUREMENT","SIZE/MEASUREMENT","STYLE","STYLE","STYLE","STYLE","PRODUCTION TYPE","PRODUCTION TYPE","PRODUCTION TYPE","PRODUCTION TYPE","STYLE","SEASONS/ THEMES",null,"SEASONS/ THEMES","SIZE/ MEASUREMENT","SIZE/ MEASUREMENT","SEASONS/ THEMES","SIZE_MEASUREMENT","SIZE_MEASUREMENT","SIZE_MEASUREMENT","SIZE_MEASUREMENT","SIZE_MEASUREMENT","SIZE_MEASUREMENT","SIZE_MEASUREMENT","SEASONS/THEMES","SIZE_MEASUREMENT","SEASONS/THEMES","SIZE_MEASUREMENT","SIZE_MEASUREMENT","SIZE_MEASUREMENT","SIZE_MEASUREMENT","SIZE_MEASUREMENT","SIZE_MEASUREMENT","SIZE_MEASUREMENT","SIZE_MEASUREMENT","SIZE_MEASUREMENT","SIZE_MEASUREMENT","SIZE_MEASUREMENT","SIZE_MEASUREMENT","SIZE_MEASUREMENT","SIZE_MEASUREMENT","SIZE_MEASUREMENT","SIZE_MEASUREMENT","SIZE_MEASUREMENT","SUB BRAND","STYLE","SIZE/ MEASUREMENT","STYLE","SIZE/ MEASUREMENT","SIZE/ MEASUREMENT","SIZE/ MEASUREMENT","SIZE/ MEASUREMENT","SIZE_MEASUREMENT","SIZE/ MEASUREMENT","SEASONS/ THEMES","SEASONS/ THEMES","STYLE ","SIZE_MEASUREMENT","SIZE/ MEASUREMENT","SIZE_MEASUREMENT","SIZE/ MEASUREMENT","SIZE_MEASUREMENT","SUB BRAND","SIZE/ MEASUREMENT","STYLE","SEASONS/THEMES","SEASONS/THEMES","SEASONS/THEMES","SEASONS/THEMES","SEASONS/THEMES","SEASONS/THEMES","SEASONS/THEMES","SEASONS/THEMES","SEASONS/THEMES","SUB BRAND","SUB BRAND","SUB BRAND","SEASONS/THEMES","SEASONS/THEMES","SEASONS/THEMES","SEASONS/THEMES","SEASONS/THEMES","SEASONS/THEMES","SEASONS/THEMES",null,"SUB BRAND"]
[null,null,null,"SIZE/ MEASUREMENT","SEASONS/ THEMES","SEASONS/ THEMES",null,"SEASONS/ THEMES","SIZE/ MEASUREMENT","SEASONS/ THEMES","TASTE VARIANT","STYLE","SIZE/MEASUREMENT","TASTE VARIANT","STYLE","TASTE VARIANT","TASTE VARIANT","STYLE ","TASTE VARIANT","TASTE VARIANT","TASTE VARIANT","TASTE VARIANT",null,"SEASONS/ THEMES","SUB BRAND","SEASONS/ THEMES","SEASONS/ THEMES","SUB BRAND",null,null,"SIZE/ MEASUREMENT","STYLE","STYLE","SIZE/ MEASUREMENT","STYLE","STYLE","STYLE","STYLE","STYLE","STYLE","STYLE","SIZE_MEASUREMENT","STYLE","STYLE","STYLE","STYLE","STYLE","STYLE","STYLE","STYLE","STYLE","STYLE","STYLE","STYLE","STYLE","STYLE","STYLE","STYLE","STYLE","STYLE","STYLE","SIZE_MEASUREMENT","SUB BRAND","STYLE ",null,"STYLE ","STYLE ","STYLE","STYLE","STYLE","STYLE ","SIZE/ MEASUREMENT","SIZE/ MEASUREMENT",null,"STYLE","STYLE","STYLE","STYLE","STYLE","SEASONS/THEMES","STYLE","COLOUR","SIZE/ MEASUREMENT","SIZE/ MEASUREMENT","SIZE/ MEASUREMENT","SIZE/ MEASUREMENT","SIZE/ MEASUREMENT","SIZE/ MEASUREMENT","SIZE/ MEASUREMENT","SIZE/ MEASUREMENT","SIZE/ MEASUREMENT","COLOUR","COLOUR","COLOUR","SIZE_MEASUREMENT","SIZE_MEASUREMENT","SIZE_MEASUREMENT","SIZE_MEASUREMENT","SIZE_MEASUREMENT","SIZE_MEASUREMENT","SIZE_MEASUREMENT"]
[null,null,null,"TASTE VARIANT","SIZE/ MEASUREMENT","SIZE/ MEASUREMENT",null,"SIZE/ MEASUREMENT","TASTE VARIANT","SIZE/ MEASUREMENT",null,"TASTE VARIANT","STYLE","STYLE",null,null,null,null,null,null,null,null,null,"STYLE","STYLE","STYLE","SIZE/ MEASUREMENT",null,null,null,"STYLE","SUB BRAND","SUB BRAND","STYLE","SUB_BRAND","SUB_BRAND","SUB_BRAND","SUB_BRAND","SUB_BRAND","SUB_BRAND","SUB_BRAND","STYLE","SUB_BRAND","SUB BRAND","SUB_BRAND","SUB_BRAND","SUB_BRAND","SUB_BRAND","SUB_BRAND","SUB_BRAND","SUB_BRAND","SUB_BRAND","SUB_BRAND","SUB_BRAND","SUB_BRAND","SUB_BRAND","SUB_BRAND","SUB_BRAND","SUB_BRAND","SUB_BRAND","SUB_BRAND","COLOUR",null,"SUB BRAND",null,"SUB BRAND","SUB BRAND","SUB BRAND","SUB BRAND","SUB_BRAND","SUB BRAND","STYLE ","STYLE ",null,"SUB_BRAND","SUB BRAND","SUB_BRAND","SUB BRAND","SUB_BRAND","STYLE","COLOUR","MATERIALS/ FABRICS/ FIBRES","STYLE","COLOUR","COLOUR","STYLE","COLOUR","COLOUR","COLOUR","COLOUR","COLOUR","STYLE","STYLE","STYLE","STYLE","STYLE","STYLE","STYLE","STYLE","STYLE","STYLE"]
[null,null,null,null,"TASTE VARIANT","TASTE VARIANT",null,"TASTE VARIANT",null,"TASTE VARIANT",null,null,"TASTE VARIANT",null,null,null,null,null,null,null,null,null,null,null,null,null,"STYLE",null,null,null,null,null,null,null,"COLOUR","COLOUR","COLOUR","COLOUR","COLOUR","COLOUR","COLOUR","COLOUR","COLOUR","COLOUR","COLOUR","COLOUR","COLOUR","COLOUR","COLOUR","COLOUR","COLOUR","COLOUR","COLOUR","COLOUR","COLOUR","COLOUR","COLOUR","COLOUR","COLOUR","COLOUR","COLOUR","MATERIALS_ FABRICS_ FIBRES",null,"COLOUR",null,"COLOUR","COLOUR","COLOUR","COLOUR","COLOUR","COLOUR","COLOUR","COLOUR",null,"COLOUR","COLOUR","COLOUR","COLOUR","COLOUR",null,"MATERIALS/ FABRICS/ FIBRES",null,"MATERIALS/ FABRICS/ FIBRES","STYLE","STYLE",null,"STYLE","STYLE","STYLE","STYLE","STYLE","MATERIALS/ FABRICS/ FIBRES","MATERIALS/ FABRICS/ FIBRES","MATERIALS/ FABRICS/ FIBRES","SUB BRAND","SUB BRAND","SUB BRAND","SUB BRAND","SUB BRAND","SUB BRAND","SUB BRAND"]
[null,null,null,null,null,null,null,null,null,"STYLE",null,null,null,null,null,null,null,null,null,null,null,null,null,null,null,null,"TASTE VARIANT",null,null,null,null,null,null,null,null,null,null,null,null,null,null,null,null,"MATERIALS_ FABRICS_ FIBRES",null,"MATERIALS_ FABRICS_ FIBRES","MATERIALS_ FABRICS_ FIBRES","MATERIALS_ FABRICS_ FIBRES","MATERIALS_ FABRICS_ FIBRES","MATERIALS_ FABRICS_ FIBRES","MATERIALS_ FABRICS_ FIBRES","MATERIALS_ FABRICS_ FIBRES",null,"MATERIALS_ FABRICS_ FIBRES",null,"MATERIALS_ FABRICS_ FIBRES","MATERIALS_ FABRICS_ FIBRES","MATERIALS_ FABRICS_ FIBRES",null,"MATERIALS_ FABRICS_ FIBRES","MATERIALS_ FABRICS_ FIBRES",null,null,"MATERIALS/ FABRICS/ FIBRES",null,"MATERIALS/ FABRICS/ FIBRES","MATERIALS/ FABRICS/ FIBRES","MATERIALS/ FABRICS/ FIBRES","MATERIALS/ FABRICS/ FIBRES","MATERIALS_ FABRICS_ FIBRES","MATERIALS/ FABRICS/ FIBRES","MATERIALS/ FABRICS/ FIBRES","MATERIALS/ FABRICS/ FIBRES",null,"MATERIALS/ FABRICS/ FIBRES","MATERIALS/ FABRICS/ FIBRES","MATERIALS_ FABRICS_ FIBRES","MATERIALS/ FABRICS/ FIBRES",null,null,null,null,null,null,"MATERIALS/ FABRICS/ FIBRES",null,null,null,"MATERIALS/ FABRICS/ FIBRES","MATERIALS/ FABRICS/ FIBRES",null,null,null,null,"COLOUR","COLOUR","COLOUR","COLOUR","COLOUR","COLOUR","COLOUR"]
[null,null,null,null,null,null,null,null,null,null,null,null,null,null,null,null,null,null,null,null,null,null,null,null,null,null,null,null,null,null,null,null,null,null,null,null,null,null,null,null,null,null,null,null,null,null,null,null,null,null,null,null,null,null,null,null,null,null,null,null,null,null,null,null,null,null,null,null,null,null,null,null,null,null,null,null,null,null,null,null,null,null,null,null,null,null,null,null,null,null,null,null,null,null,"MATERIALS_ FABRICS_ FIBRES","MATERIALS_ FABRICS_ FIBRES","MATERIALS_ FABRICS_ FIBRES","MATERIALS_ FABRICS_ FIBRES","MATERIALS_ FABRICS_ FIBRES","MATERIALS_ FABRICS_ FIBRES","MATERIALS_ FABRICS_ FIBRES"]

{"sheet":"Lists","index":14,"n_rows":41,"n_cols":20,"rows_kept":41,"cut":false,"hidden":false,"merged":[]}
["RP Type DC","RP Type Store","Article Type","Flow Type","Purchasing organization","No repeat key","Sales Rules","Multi buy key","Yes/No","Afdeling","Article category","Supply Source F&G","Article category F&G","Article Hierachy F&G","StockPlanner","StorrageLocation","Assortment list type","Naming","Price Unit","BUoM"]
["Z0: No Planning","PD: RP","ZADM - DS Administration","RA: Assortment articles","DS01: Food/Nearfood","No repeat key allowed","0 No Sales Rule","0 Not allowed","Yes","320","00 Single article","Direct vendor to store","Single article","R61255 APPLES","010 - Butcher","0001 - Store",1,"SIK (Safety)","EA","EA"]
["Z1: DSTime-phased w.auto.rord.pnt","Z0: No Planning","ZCAT - DS Category Articles","SA: Articles sold in a seasonal period","SA01: Salling","Repeat key must be used","1 Above 18 years","1 Optional use","No","330","01 Generic article","DC to store","Logistical Normal display","R61256 PEARS","020 - Deli","0010 - Butcher",6,"SLA (Slagter)","KG","EA1"]
["Z2: DS Static w. Man Reord Pt","Z1: DSTime-phased w.auto.rord.pnt","ZCS - Commercial set","OT: One timer campaign article","DS01 and SA01",null,"2 Above 16 years",null,null,"370","10 Sales set",null,"Logistical Apple display","R61274 CAPSICUMS","030 - Bakery","0020 - Deli",null,"TEX (Tøj og sko)",null,"KG"]
["Z3: DS Static w. auto Reord Pt","Z2: DS Static w. Man Reord Pt","ZDS1 - DS Disp Art (Trading Gds)","MT: Multi timer campaign article","NE02: Netto DE",null,"3 Above 15 years",null,null,"390","11 Prepack",null,null,"R61275 CUCUMBERS","040 - Bistro","0030 - Bakery",null,"REN (Rengøring)"]
["Z8: DS Manual Replenishment","Z3: DS Static w. auto Reord Pt","ZDS2 - DS Disp Art (Perishables)","AD: Administration articles, packing material (articles not sold)","NE04: Netto PL",null,"4 Above 12 years",null,null,null,"12 Display",null,null,"R61276 EGGPLANTS/COURGETTES/PUMPKINS",null,"0040 - Bistro",null,"BAG (Bager)"]
["Z9: Mix Article Planning","Z8: DS Manual Replenishment","ZDS3 - DS Disp Art (11 Dgt Trdg)",null,"NE05: Netto SE",null,"5 Above 11 years",null,null,null,"22 Group article",null,null,"R61278 LETTUCE",null,null,null,"DEL (Deli)"]
["ZM: MRP for F&V and KRO articles","Z9: Mix Article Planning","ZDS4 - DS Disp Art (11 Dgt Prsh)",null,"NE08: Netto UK",null,"6 Above 7 years",null,null,null,null,null,null,"R61279 MUSHROOMS",null,null,null,"F&G (Frugt & Grønt)"]
["ZZ: No Planning; Not F&R Relevant","ZZ: No Planning; Not F&R Relevant","ZEMP - DS Empties",null,null,null,"Check age limit on the product",null,null,null,null,null,null,"R61281 TOMATOES",null,null,null,"QFB (Quickfood/ Bistro)"]
[null,null,"ZFPA - DS Franchise Prod Article",null,null,null,"Blocked for sale",null,null,null,null,null,null,"R61282 SPROUTS",null,null,null,"FRA (Carls Jr & SBux)"]
[null,null,"ZFRA - DS Franchise RAW Article",null,null,null,null,null,null,null,null,null,null,"R61263 CABBAGE",null,null,null,"KOL (Kolonial)"]
[null,null,"ZFRE - DS Free Goods",null,null,null,null,null,null,null,null,null,null,"R61264 POTATOES",null,null,null,"HUS (Administration)"]
[null,null,"ZFS - DS Food Servc Fin Product",null,null,null,null,null,null,null,null,null,null,"R61265 CARROTS",null,null,null,"FÆL (Fælles produktion)"]
[null,null,"ZFUL - DS Full Products",null,null,null,null,null,null,null,null,null,null,"R61266 ONIONS"]
[null,null,"ZPAC - DS Non val. Packing materials",null,null,null,null,null,null,null,null,null,null,"R61267 ROOT VEGETABLES"]
[null,null,"ZPAL - DS Packing materials (valuated)",null,null,null,null,null,null,null,null,null,null,"R61257 CLEMENTINES"]
[null,null,"ZPBS - DS Pay by scan",null,null,null,null,null,null,null,null,null,null,"R61258 GRAPEFRUIT/POMELO/OTHERS"]
[null,null,"ZPER - DS Perishables",null,null,null,null,null,null,null,null,null,null,"R61260 LEMONS/LIMES"]
[null,null,"ZPRD - DS Central Kitch Fin Prod",null,null,null,null,null,null,null,null,null,null,"R61261 ORANGES"]
[null,null,"ZRAW - DS Raw materials",null,null,null,null,null,null,null,null,null,null,"R61268 F&V READY TO EAT SOLUTIONS"]
[null,null,"ZREF - DS Reference articles",null,null,null,null,null,null,null,null,null,null,"R61269 SALADS FRESH CUTS"]
[null,null,"ZSER - DS Service",null,null,null,null,null,null,null,null,null,null,"R61270 VEGETABLES FRESH CUTS"]
[null,null,"ZTEX - DS Textile",null,null,null,null,null,null,null,null,null,null,"R61262 SLICED FRUITS"]
[null,null,"ZTG - DS Trading Goods",null,null,null,null,null,null,null,null,null,null,"R61242 MANGO/PAPAYA"]
[null,null,null,null,null,null,null,null,null,null,null,null,null,"R61243 OTHER EXOTIC FRUITS"]
[null,null,null,null,null,null,null,null,null,null,null,null,null,"R61244 PINEAPPLES"]
[null,null,null,null,null,null,null,null,null,null,null,null,null,"R61247 BANANAS"]
[null,null,null,null,null,null,null,null,null,null,null,null,null,"R61259 KIWI"]
[null,null,null,null,null,null,null,null,null,null,null,null,null,"R61271 AVOCADO"]
[null,null,null,null,null,null,null,null,null,null,null,null,null,"R61272 OTHER EXOTIC VEGETABLES"]
[null,null,null,null,null,null,null,null,null,null,null,null,null,"R61273 ASPARAGUES/BEANS"]
[null,null,null,null,null,null,null,null,null,null,null,null,null,"R61280 PEAS/SWEET CORN"]
[null,null,null,null,null,null,null,null,null,null,null,null,null,"R61277 HERBS"]
[null,null,null,null,null,null,null,null,null,null,null,null,null,"R61245 DRIED FRUITS"]
[null,null,null,null,null,null,null,null,null,null,null,null,null,"R61246 NUTS"]
[null,null,null,null,null,null,null,null,null,null,null,null,null,"R61248 BERRIES"]
[null,null,null,null,null,null,null,null,null,null,null,null,null,"R61249 GRAPES"]
[null,null,null,null,null,null,null,null,null,null,null,null,null,"R61250 MELONS"]
[null,null,null,null,null,null,null,null,null,null,null,null,null,"R61251 CHERRIES"]
[null,null,null,null,null,null,null,null,null,null,null,null,null,"R61252 NECTARINES/PEACHES"]
[null,null,null,null,null,null,null,null,null,null,null,null,null,"R61253 PLUMS/ABRICOTS"]

{"sheet":"Lister","index":15,"n_rows":58,"n_cols":45,"rows_kept":58,"cut":false,"hidden":false,"merged":[]}
["Afdeling","Afdeling","Afdeling","Afdeling","Grupper","Grupper","Grupper","Grupper","Grupper","Grupper","Grupper","Grupper","Grupper","Grupper","Grupper","Grupper","Grupper","Grupper","Grupper","Grupper","Grupper","Grupper","Grupper","Grupper","Grupper","Grupper","Grupper","Grupper","Grupper","Grupper","Grupper","Grupper","Grupper","Grupper","Grupper","Grupper","Grupper","Grupper","Grupper","Grupper","Grupper","Grupper","Grupper","Grupper","Grupper"]
["320","330","370","390","01","02","03","04","05","06","08",20,22,23,24,25,26,27,"31","32","33","35","37","38","39","42",45,46,52,53,54,55,59,"60","61","62","64","65","66","69","70","72","79","740","0774"]
["Grupper","Grupper","Grupper","Grupper","Varetype","Varetype","Varetype","Varetype","Varetype","Varetype","Varetype","Varetype","Varetype","Varetype","Varetype","Varetype","Varetype","Varetype","Varetype","Varetype","Varetype","Varetype","Varetype","Varetype","Varetype","Varetype","Varetype","Varetype","Varetype","Varetype","Varetype","Varetype","Varetype","Varetype","Varetype","Varetype","Varetype","Varetype","Varetype","Varetype","Varetype","Varetype","Varetype","Varetype","Varetype"]
["20","31","72","01","Afspillere Billede  (DVD, Blu-ray, VHS, DVD-VHS kombi, Harddiskoptagere, DVD afspiller bærbar)","Elektroniske spil","Babyalarmer","Bærbare computere ","Babyalarmer","Elektroniske spil","Barbermaskiner","Amaturer","Amaturer","Amaturer","Amaturer","Amaturer","Amaturer","Aircondition","Campingstole","Campingstole","Ben","Ben","Campingstole","Ben","Elpærer","Ammeudstyr","Blomsterkrukker og potter","Blomsterkrukker og potter","Aircondition","Aircondition","Aircondition","Potter og vaser","Aircondition","Ammeudstyr","Legetøj Børn/baby","Elpærer","Cafesæt","Autodele, autointeriør, autoopevaring, autolåse, autotilbehør","Autodele, autointeriør, autoopevaring, autolåse, autotilbehør","Ammeudstyr","Lys","Make-up spejle","Smådekorationer (stearinlysholdere, vaser, trådkugler)","Bøger","Armbåndsure"]
["22","32",null,"02","Afspillere Lyd (Ghettobalstere, musikanlæg, pladespillere, kasstebåndsafspillere, iPods)","Generelt for alle elektronikprodukter (som henvises til i produktgrupperne)","Børnekameraer","Computer software/computerprogrammer","Børnekameraer","Generelt for alle elektronikprodukter (som henvises til i produktgrupperne)","Brødrister","Badeforhæng","Badeforhæng","Badeforhæng","Badeforhæng","Badeforhæng","Badeforhæng","Boremaskiner","Garderobeskabe","Garderobeskabe","Boksmadrasser","Boksmadrasser","Garderobeskabe","Boksmadrasser","Lamper","Bageudstyr","Planter (træer, hække, buske, bunddække, rullegræs, blomster, frø, løg)","Planter (træer, hække, buske, bunddække, rullegræs, blomster, frø, løg)","Boremaskiner","Boremaskiner","Boremaskiner","Planter (træer, hække, buske, bunddække, rullegræs, blomster, frø, løg)","Boremaskiner","Bageudstyr","Spil","Lamper","Campingbord","Autostole","Autostole","Bageudstyr","Servietter","Parfume og deodoranter, Hudcremer og olier, shampoo, balsam,  hårfarve, sæbe, barberskum, førstehjælpsprodukter, insektmiddel, receptfri lægemidler, hårredskaber, kosmetik","Lys",null,"Batterier"]
["23","37",null,"06","Generelt for alle elektronikprodukter (som henvises til i produktgrupperne)","Hovedtelefoner","Digitale billedrammer","Generelt for alle elektronikprodukter (som henvises til i produktgrupperne)","Digitale billedrammer","Hovedtelefoner","Dampstationer","Badekar","Badekar","Badekar","Badekar","Badekar","Badekar","Briketter","Gulvtæpper","Gulvtæpper","Bunde","Bunde","Gulvtæpper","Bunde","Lampeskærme","Beholdere (dåser, krukker, flasker, skåle, målekopper osv)","Potter og vaser","Potter og vaser","Briketter","Briketter","Briketter","Blomsterkrukker og potter","Briketter","Beholdere (dåser, krukker, flasker, skåle, målekopper osv)","Udklædning","Lampeskærme","Campingstole","Barnevogne og klapvogne","Barnevogne og klapvogne","Beholdere (dåser, krukker, flasker, skåle, målekopper osv)","Smådekorationer (stearinlysholdere, vaser, trådkugler)",null,"Servietter",null,"Diverse kontorartikler (blyantspidser, saks, tape, hæftemaskine, lineal osv.)"]
["24","33",null,"03","Home cinema sæt ","Kabler og ledninger","Digitalt kamera","Harddiske, hukommelseskort og optagemedier","Digitalt kamera","Kabler og ledninger","Eltandbørster","Badeværelsesskabe","Badeværelsesskabe","Badeværelsesskabe","Badeværelsesskabe","Badeværelsesskabe","Badeværelsesskabe","Brænde","Hjørnesofaer","Hjørnesofaer","Dyner og puder","Dyner og puder","Hjørnesofaer","Dyner og puder","Lysskinner","Bestik",null,null,"Brænde","Brænde","Brænde",null,"Brænde","Bestik",null,"Lysskinner","Gasgrill ","Børnesikring (køleskabslås, dørstopper, kontaktsikring osv.)","Børnesikring (køleskabslås, dørstopper, kontaktsikring osv.)","Bestik",null,null,null,null,"Glastavler, whiteboards og billederammer"]
["25","35",null,"05","Højttalere ","Oplevelsesgavekort","Engangskameraer","Kortlæsere","Engangskameraer","Oplevelsesgavekort","Emhætter","Badeværelsestilbehør","Badeværelsestilbehør","Badeværelsestilbehør","Badeværelsestilbehør","Badeværelsestilbehør","Badeværelsestilbehør","Brændekløvere","Hæve-sænkeborde","Hæve-sænkeborde","Elevationssenge","Elevationssenge","Hæve-sænkeborde","Elevationssenge",null,"Glas",null,null,"Brændekløvere","Brændekløvere","Brændekløvere",null,"Brændekløvere","Glas",null,null,"Haveborde","Crosstrainer","Crosstrainer","Glas",null,null,null,null,"Lamineringsmaskiner"]
["26","38",null,"04","Højttalersæt ","Spilkonsoller ","Generelt for alle elektronikprodukter (som henvises til i produktgrupperne)","Navigation","Generelt for alle elektronikprodukter (som henvises til i produktgrupperne)","Spilkonsoller ","Epilatorer","Badmiljøer","Badmiljøer","Badmiljøer","Badmiljøer","Badmiljøer","Badmiljøer","Brændeovne","Kasser og kurve","Kasser og kurve","Gardiner","Gardiner","Kasser og kurve","Gardiner",null,"Gyder og pander",null,null,"Brændeovne","Brændeovne","Brændeovne",null,"Brændeovne","Gyder og pander",null,null,"Havemøbelsæt","Cykelholdere","Cykelholdere","Gyder og pander",null,null,null,null,"Lommeregnere"]
["27","42",null,"08","Radioer ","Stikdåser","Kamera tilbehør","Pegeredskaber (3D styring, digitale penne, computer mus, trackball mus, tegneplade)","Kamera tilbehør","Stikdåser","Espressomaskiner","Døre","Døre","Døre","Døre","Døre","Døre","Bålplads","Kister","Kister","Hovedgærder","Hovedgærder","Kister","Hovedgærder",null,"Kander",null,null,"Bålplads","Bålplads","Bålplads",null,"Bålplads","Kander",null,null,"Haveopbevaringsmøbler","Cykellåse","Cykellåse","Kander",null,null,null,null,"Makulatorer"]
["52","60",null,"61","TV","TV-tuner extensions classification","Kompakte kameraer","Printere (inkjet, laserprinter, labelprinter)","Kompakte kameraer","TV-tuner extensions classification","Foodprocessor","Dørknage, husnummer, dørstopper osv.","Dørknage, husnummer, dørstopper osv.","Dørknage, husnummer, dørstopper osv.","Dørknage, husnummer, dørstopper osv.","Dørknage, husnummer, dørstopper osv.","Dørknage, husnummer, dørstopper osv.","Carporte ","Klapstole","Klapstole","Håndklæder","Håndklæder","Klapstole","Håndklæder",null,"Køkkenknive",null,null,"Carporte ","Carporte ","Carporte ",null,"Carporte ","Køkkenknive",null,null,"Havesofaer","Cykelpedaler","Cykelpedaler","Køkkenknive",null,null,null,null,"Papirprodukter"]
["53","69",null,"0774","TV modtagere ",null,"Mobiltelefon tilbehør","Routere","Mobiltelefon tilbehør",null,"Frysere","Espalie","Espalie","Espalie","Espalie","Espalie","Espalie","Cementblandere","Kommoder","Kommoder","Kontinentalsenge","Kontinentalsenge","Kommoder","Kontinentalsenge",null,"Køkkenredskaber",null,null,"Cementblandere","Cementblandere","Cementblandere",null,"Cementblandere","Køkkenredskaber",null,null,"Havestole","Cykelpumper","Cykelpumper","Køkkenredskaber",null,null,null,null,"Remstifter"]
["54","39",null,"740","Vægbeslag",null,"Mobiltelefoner","Scannere","Mobiltelefoner",null,"Hårtørrere","Fittings og rør","Fittings og rør","Fittings og rør","Fittings og rør","Fittings og rør","Fittings og rør","Drivhuse + sokler og tilbehør","Kontorstole","Kontorstole","Lagner","Lagner","Kontorstole","Lagner",null,"Køkkenvægt",null,null,"Drivhuse + sokler og tilbehør","Drivhuse + sokler og tilbehør","Drivhuse + sokler og tilbehør",null,"Drivhuse + sokler og tilbehør","Køkkenvægt",null,null,"Hængekøjer","Cykelslanger og cykeldæk","Cykelslanger og cykeldæk","Køkkenvægt",null,null,null,null,"Skriveinstrumenter"]
["59","62",null,null,null,null,"Objektiver","Skærme","Objektiver",null,"Indbygningsovne","Flag","Flag","Flag","Flag","Flag","Flag","Dykpumper","Køkkenskabe","Køkkenskabe","Luftmadrasser","Luftmadrasser","Køkkenskabe","Luftmadrasser",null,"Porcelæn",null,null,"Dykpumper","Dykpumper","Dykpumper",null,"Dykpumper","Porcelæn",null,null,"Kulgrill","Cykler","Cykler","Porcelæn",null,null,null,null,"Tilbehør ure"]
["25","64",null,null,null,null,"Videokamera","Stationære computere","Videokamera",null,"Kaffemaskiner","Flagstænger","Flagstænger","Flagstænger","Flagstænger","Flagstænger","Flagstænger","Flis","Lounge stole","Lounge stole","Markiser","Markiser","Lounge stole","Markiser",null,"Rengøringsredskaber",null,null,"Flis","Flis","Flis",null,"Flis","Rengøringsredskaber",null,null,"Læsejl","Frivægte","Frivægte","Rengøringsredskaber",null,null,null,null,"Ure, armbåndsure, parkeringsure og vægure"]
["45","65",null,null,null,null,"Walkie-talkies","Tablet computere ","Walkie-talkies",null,"Kogeplader","Gulve","Gulve","Gulve","Gulve","Gulve","Gulve","Gasovne","Lænestole","Lænestole","Materialer (stofbånd, sytråd, knapper, lapper og patchwork tilbehør)","Materialer (stofbånd, sytråd, knapper, lapper og patchwork tilbehør)","Lænestole","Materialer (stofbånd, sytråd, knapper, lapper og patchwork tilbehør)",null,"Skærebrætter",null,null,"Gasovne","Gasovne","Gasovne",null,"Gasovne","Skærebrætter",null,null,"Parasoller","Hjelme","Hjelme","Skærebrætter",null,null,null,null,"Uropbevaring"]
["46","66",null,null,null,null,null,"Tastaturer",null,null,"Komfur","Gynger","Gynger","Gynger","Gynger","Gynger","Gynger","Generatorer","Ottomaner /Puffer","Ottomaner /Puffer","Persienner","Persienner","Ottomaner /Puffer","Persienner",null,"Strygebræt",null,null,"Generatorer","Generatorer","Generatorer",null,"Generatorer","Strygebræt",null,null,"Rygsække","Løbebånd","Løbebånd","Strygebræt",null,null,null,null,"Urremme"]
["55","70",null,null,null,null,null,null,null,null,"Kølefryseskabe","Hegnspæle + hegnsmoduler","Hegnspæle + hegnsmoduler","Hegnspæle + hegnsmoduler","Hegnspæle + hegnsmoduler","Hegnspæle + hegnsmoduler","Hegnspæle + hegnsmoduler","Gødning","Rengøringsprodukter","Rengøringsprodukter","Pinde og nåle","Pinde og nåle","Rengøringsprodukter","Pinde og nåle",null,"Sutter",null,null,"Gødning","Gødning","Gødning",null,"Gødning","Sutter",null,null,"Soveposer","Massage tilbehør","Massage tilbehør","Sutter"]
[null,"79",null,null,null,null,null,null,null,null,"Køleskabe","Hegnstråd","Hegnstråd","Hegnstråd","Hegnstråd","Hegnstråd","Hegnstråd","Have pynteting","Rumdelere","Rumdelere","Pyntepuder","Pyntepuder","Rumdelere","Pyntepuder",null,null,null,null,"Have pynteting","Have pynteting","Have pynteting",null,"Have pynteting",null,null,null,"Telte","Massageapparater","Massageapparater"]
[null,null,null,null,null,null,null,null,null,null,"Massageapparater","Højskabe","Højskabe","Højskabe","Højskabe","Højskabe","Højskabe","Havefræsere  (elektrisk eller brændstof) ","Skamler","Skamler","Sengerammer","Sengerammer","Skamler","Sengerammer",null,null,null,null,"Havefræsere  (elektrisk eller brændstof) ","Havefræsere  (elektrisk eller brændstof) ","Havefræsere  (elektrisk eller brændstof) ",null,"Havefræsere  (elektrisk eller brændstof) ",null,null,null,"Terrassevarmere","Massagebriks","Massagebriks"]
[null,null,null,null,null,null,null,null,null,null,"Mikrobølgeovne","Håndvaske","Håndvaske","Håndvaske","Håndvaske","Håndvaske","Håndvaske","Havetraktorer","Skriveborde","Skriveborde","Sengetøj/sæt","Sengetøj/sæt","Skriveborde","Sengetøj/sæt",null,null,null,null,"Havetraktorer","Havetraktorer","Havetraktorer",null,"Havetraktorer",null,null,null,null,"Massagestol","Massagestol"]
[null,null,null,null,null,null,null,null,null,null,"Miniovne","Køkkenvaske","Køkkenvaske","Køkkenvaske","Køkkenvaske","Køkkenvaske","Køkkenvaske","Hækkeklipper","Skænke","Skænke","Skummadrasser","Skummadrasser","Skænke","Skummadrasser",null,null,null,null,"Hækkeklipper","Hækkeklipper","Hækkeklipper",null,"Hækkeklipper",null,null,null,null,"Motionscykler","Motionscykler"]
[null,null,null,null,null,null,null,null,null,null,"Opvaskemaskine","Legeplads tårn, sandkasser,  legehuse og rutschebaner","Legeplads tårn, sandkasser,  legehuse og rutschebaner","Legeplads tårn, sandkasser,  legehuse og rutschebaner","Legeplads tårn, sandkasser,  legehuse og rutschebaner","Legeplads tårn, sandkasser,  legehuse og rutschebaner","Legeplads tårn, sandkasser,  legehuse og rutschebaner","Højtryksrensere","Små opbevaringsmøbler (skostativer, Cdholdere, tøjstativer)","Små opbevaringsmøbler (skostativer, Cdholdere, tøjstativer)","Solsejl","Solsejl","Små opbevaringsmøbler (skostativer, Cdholdere, tøjstativer)","Solsejl",null,null,null,null,"Højtryksrensere","Højtryksrensere","Højtryksrensere",null,"Højtryksrensere",null,null,null,null,"Power plates","Power plates"]
[null,null,null,null,null,null,null,null,null,null,"Ovne","Låse","Låse","Låse","Låse","Låse","Låse","Håndhaveredskaber (planteskovle, kultivatorer, frugtplukkere, grensakse osv.)","Sofaer med chaiselong","Sofaer med chaiselong","Springmadrasser","Springmadrasser","Sofaer med chaiselong","Springmadrasser",null,null,null,null,"Håndhaveredskaber (planteskovle, kultivatorer, frugtplukkere, grensakse osv.)","Håndhaveredskaber (planteskovle, kultivatorer, frugtplukkere, grensakse osv.)","Håndhaveredskaber (planteskovle, kultivatorer, frugtplukkere, grensakse osv.)",null,"Håndhaveredskaber (planteskovle, kultivatorer, frugtplukkere, grensakse osv.)",null,null,null,null,"Romaskiner","Romaskiner"]
[null,null,null,null,null,null,null,null,null,null,"Strygejern","Personvægt","Personvægt","Personvægt","Personvægt","Personvægt","Personvægt","Håndværktøj","Sofaer u. chaiselong","Sofaer u. chaiselong","Strikkegarn","Strikkegarn","Sofaer u. chaiselong","Strikkegarn",null,null,null,null,"Håndværktøj","Håndværktøj","Håndværktøj",null,"Håndværktøj",null,null,null,null,"Trampoliner","Trampoliner"]
[null,null,null,null,null,null,null,null,null,null,"Støvsugere","Postkasse standere","Postkasse standere","Postkasse standere","Postkasse standere","Postkasse standere","Postkasse standere","Jord og muld","Sovesofaer","Sovesofaer","Sækkestol","Sækkestol","Sovesofaer","Sækkestol",null,null,null,null,"Jord og muld","Jord og muld","Jord og muld",null,"Jord og muld",null,null,null,null,"Træningsbold, træningsmåtter, fintnesstilbehør, fitnessbænke","Træningsbold, træningsmåtter, fintnesstilbehør, fitnessbænke"]
[null,null,null,null,null,null,null,null,null,null,"Symaskiner","Postkasser","Postkasser","Postkasser","Postkasser","Postkasser","Postkasser","Klimaanlæg","Spejle","Spejle","Tilbehør gardiner","Tilbehør gardiner","Spejle","Tilbehør gardiner",null,null,null,null,"Klimaanlæg","Klimaanlæg","Klimaanlæg",null,"Klimaanlæg"]
[null,null,null,null,null,null,null,null,null,null,"Trimmere","Spa","Spa","Spa","Spa","Spa","Spa","Kædesave","Spiseborde","Spiseborde","Topmadrasser","Topmadrasser","Spiseborde","Topmadrasser",null,null,null,null,"Kædesave","Kædesave","Kædesave",null,"Kædesave"]
[null,null,null,null,null,null,null,null,null,null,"Tørretumbler","Termometer","Termometer","Termometer","Termometer","Termometer","Termometer","Luftsolfangere","Spisebordsstole","Spisebordsstole",null,null,"Spisebordsstole",null,null,null,null,null,"Luftsolfangere","Luftsolfangere","Luftsolfangere",null,"Luftsolfangere"]
[null,null,null,null,null,null,null,null,null,null,"Varmeapparater (varmepude, varmetæppe, varmelys)","Termostater","Termostater","Termostater","Termostater","Termostater","Termostater","Løfteudstyr","Vitriner","Vitriner",null,null,"Vitriner",null,null,null,null,null,"Løfteudstyr","Løfteudstyr","Løfteudstyr",null,"Løfteudstyr"]
[null,null,null,null,null,null,null,null,null,null,"Vaskemaskine","Toiletkumme","Toiletkumme","Toiletkumme","Toiletkumme","Toiletkumme","Toiletkumme","Palleløfter","Vægkunst (malerier, billeder)","Vægkunst (malerier, billeder)",null,null,"Vægkunst (malerier, billeder)",null,null,null,null,null,"Palleløfter","Palleløfter","Palleløfter",null,"Palleløfter"]
[null,null,null,null,null,null,null,null,null,null,"Ventilator","Tørrestativ","Tørrestativ","Tørrestativ","Tørrestativ","Tørrestativ","Tørrestativ","Pladevibratorer",null,null,null,null,null,null,null,null,null,null,"Pladevibratorer","Pladevibratorer","Pladevibratorer",null,"Pladevibratorer"]
[null,null,null,null,null,null,null,null,null,null,null,"Udekøkken","Udekøkken","Udekøkken","Udekøkken","Udekøkken","Udekøkken","Plæneklippere (elektrisk eller brændstof) ",null,null,null,null,null,null,null,null,null,null,"Plæneklippere (elektrisk eller brændstof) ","Plæneklippere (elektrisk eller brændstof) ","Plæneklippere (elektrisk eller brændstof) ",null,"Plæneklippere (elektrisk eller brændstof) "]
[null,null,null,null,null,null,null,null,null,null,null,"Vandspil og pool","Vandspil og pool","Vandspil og pool","Vandspil og pool","Vandspil og pool","Vandspil og pool","Plæneluftere",null,null,null,null,null,null,null,null,null,null,"Plæneluftere","Plæneluftere","Plæneluftere",null,"Plæneluftere"]
[null,null,null,null,null,null,null,null,null,null,null,null,null,null,null,"Wallstickers",null,"Radiatorer",null,null,null,null,null,null,null,null,null,null,"Radiatorer","Radiatorer","Radiatorer",null,"Radiatorer"]
[null,null,null,null,null,null,null,null,null,null,null,null,null,null,null,"Kemikalier, maling, bådrens osv.",null,"Rundsave",null,null,null,null,null,null,null,null,null,null,"Rundsave","Rundsave","Rundsave",null,"Rundsave"]
[null,null,null,null,null,null,null,null,null,null,null,null,null,null,null,"Maling og træbeskyttelse",null,"Skure",null,null,null,null,null,null,null,null,null,null,"Skure","Skure","Skure",null,"Skure"]
[null,null,null,null,null,null,null,null,null,null,null,null,null,null,null,"Fuge- og spartelmasse",null,"Slibemaskiner (rystepudser, excentersliber, båndpudser)",null,null,null,null,null,null,null,null,null,null,"Slibemaskiner (rystepudser, excentersliber, båndpudser)","Slibemaskiner (rystepudser, excentersliber, båndpudser)","Slibemaskiner (rystepudser, excentersliber, båndpudser)",null,"Slibemaskiner (rystepudser, excentersliber, båndpudser)"]
[null,null,null,null,null,null,null,null,null,null,null,null,null,null,null,"Fugtighedsmålere",null,"Snekastere",null,null,null,null,null,null,null,null,null,null,"Snekastere","Snekastere","Snekastere",null,"Snekastere"]
[null,null,null,null,null,null,null,null,null,null,null,null,null,null,null,"Malepensler",null,"Solcellesystemer",null,null,null,null,null,null,null,null,null,null,"Solcellesystemer","Solcellesystemer","Solcellesystemer",null,"Solcellesystemer"]
[null,null,null,null,null,null,null,null,null,null,null,null,null,null,null,"Høreværn og ørepropper",null,"Solvarmerør",null,null,null,null,null,null,null,null,null,null,"Solvarmerør","Solvarmerør","Solvarmerør",null,"Solvarmerør"]
[null,null,null,null,null,null,null,null,null,null,null,null,null,null,null,"Tapet",null,"Sprøjtepistoler",null,null,null,null,null,null,null,null,null,null,"Sprøjtepistoler","Sprøjtepistoler","Sprøjtepistoler",null,"Sprøjtepistoler"]
[null,null,null,null,null,null,null,null,null,null,null,null,null,null,null,"Hobbymaling tilbehør Staffelier, lærreder og rammer, maling, pensler",null,"Sten og fliser",null,null,null,null,null,null,null,null,null,null,"Sten og fliser","Sten og fliser","Sten og fliser",null,"Sten og fliser"]
[null,null,null,null,null,null,null,null,null,null,null,null,null,null,null,"Diverse hobbyartikler (stempler, stempelpude, stencil osv.)",null,"Sten, sand og grus",null,null,null,null,null,null,null,null,null,null,"Sten, sand og grus","Sten, sand og grus","Sten, sand og grus",null,"Sten, sand og grus"]
[null,null,null,null,null,null,null,null,null,null,null,null,null,null,null,"Maleruller",null,"Stiksave",null,null,null,null,null,null,null,null,null,null,"Stiksave","Stiksave","Stiksave",null,"Stiksave"]
[null,null,null,null,null,null,null,null,null,null,null,null,null,null,null,"Malebakker",null,"Svejseapparater",null,null,null,null,null,null,null,null,null,null,"Svejseapparater","Svejseapparater","Svejseapparater",null,"Svejseapparater"]
[null,null,null,null,null,null,null,null,null,null,null,null,null,null,null,"Diverse maleredskaber (afdækningstape osv.)",null,"Sømpistoler",null,null,null,null,null,null,null,null,null,null,"Sømpistoler","Sømpistoler","Sømpistoler",null,"Sømpistoler"]
[null,null,null,null,null,null,null,null,null,null,null,null,null,null,null,"Sikkerhedsbriller og sikkerhedsmasker",null,"Taljer",null,null,null,null,null,null,null,null,null,null,"Taljer","Taljer","Taljer",null,"Taljer"]
[null,null,null,null,null,null,null,null,null,null,null,null,null,null,null,"Tapet klister",null,"Terrassevarmere",null,null,null,null,null,null,null,null,null,null,"Terrassevarmere","Terrassevarmere","Terrassevarmere",null,"Terrassevarmere"]
[null,null,null,null,null,null,null,null,null,null,null,null,null,null,null,null,null,"Tilbehør bede (maxiposer, træskjuler osv.)",null,null,null,null,null,null,null,null,null,null,"Tilbehør bede (maxiposer, træskjuler osv.)","Tilbehør bede (maxiposer, træskjuler osv.)","Tilbehør bede (maxiposer, træskjuler osv.)",null,"Tilbehør bede (maxiposer, træskjuler osv.)"]
[null,null,null,null,null,null,null,null,null,null,null,null,null,null,null,null,null,"Trillebøre",null,null,null,null,null,null,null,null,null,null,"Trillebøre","Trillebøre","Trillebøre",null,"Trillebøre"]
[null,null,null,null,null,null,null,null,null,null,null,null,null,null,null,null,null,"Trimmere",null,null,null,null,null,null,null,null,null,null,"Trimmere","Trimmere","Trimmere",null,"Trimmere"]
[null,null,null,null,null,null,null,null,null,null,null,null,null,null,null,null,null,"Træpiller",null,null,null,null,null,null,null,null,null,null,"Træpiller","Træpiller","Træpiller",null,"Træpiller"]
[null,null,null,null,null,null,null,null,null,null,null,null,null,null,null,null,null,"Uspecificeret have kraftredskaber (løvsuger, fliserenser osv.)",null,null,null,null,null,null,null,null,null,null,"Uspecificeret have kraftredskaber (løvsuger, fliserenser osv.)","Uspecificeret have kraftredskaber (løvsuger, fliserenser osv.)","Uspecificeret have kraftredskaber (løvsuger, fliserenser osv.)",null,"Uspecificeret have kraftredskaber (løvsuger, fliserenser osv.)"]
[null,null,null,null,null,null,null,null,null,null,null,null,null,null,null,null,null,"Varmepumper",null,null,null,null,null,null,null,null,null,null,"Varmepumper","Varmepumper","Varmepumper",null,"Varmepumper"]
[null,null,null,null,null,null,null,null,null,null,null,null,null,null,null,null,null,"Vejsalt",null,null,null,null,null,null,null,null,null,null,"Vejsalt","Vejsalt","Vejsalt",null,"Vejsalt"]
[null,null,null,null,null,null,null,null,null,null,null,null,null,null,null,null,null,"Vildtfoder",null,null,null,null,null,null,null,null,null,null,"Vildtfoder","Vildtfoder","Vildtfoder",null,"Vildtfoder"]
[null,null,null,null,null,null,null,null,null,null,null,null,null,null,null,null,null,"Værdiskabe (våbenskabe osv.)",null,null,null,null,null,null,null,null,null,null,"Værdiskabe (våbenskabe osv.)","Værdiskabe (våbenskabe osv.)","Værdiskabe (våbenskabe osv.)",null,"Værdiskabe (våbenskabe osv.)"]